Workbook

Sheet forside
B2: Omkostingsvurdering af: | F2: Familiens Hus
B6: Ansvarlig for beregning: | H6: Tine Lesner og Andreas Müller, Center for Data, Analyse og Metode | Y6: (evt vedhæfte notat)
B8: Ansvarlig for input vedrørende indsatsen: | H8: Rikke Plauborg, Center for Børn, Unge og Familier
B10: Dato: | H10: 2016-02-26

Sheet input
B1: Input vedrørende indsatsen
B12: Generelle input | E12: Specifikation af teams
C13: Indtast | E13: Medarbejder-type | F13: Specifikation | G13: Antal pr. team | H13: Antal I alt | I13: Årsløn | J13: timeløn
B14: Generelt | E14: Type 1 | F14: Leder | G14: 1 | H14: 1 | I14: =Enhedspriskatalog!D65 -> 539565.5894 | J14: =Enhedspriskatalog!E65 -> 380.5116991
B15: Forløb pr. team pr. år | C15: 110 | E15: Type 2 | F15: Administrativ medarbejder | G15: =32/37 -> 0.8648648649 | H15: 1 | I15: =Enhedspriskatalog!D52 -> 396314.4978 | J15: =Enhedspriskatalog!E52 -> 279.4883624
B16: Antal driftsår | C16: 3 | E16: Type 3 | F16: Socialrådgivere | G16: 3 | H16: 3 | I16: =Enhedspriskatalog!D62 -> 435398.6705 | J16: =Enhedspriskatalog!E62 -> 307.0512486
B17: Antal teams | C17: 1 | E17: Type 4 | F17: Sundhedsplejerske | G17: 1.5 | H17: 1.5 | I17: =Enhedspriskatalog!D64 -> 438457.8557 | J17: =Enhedspriskatalog!E64 -> 309.208643
B18: Antal forløb pr år | C18: =C15*C17 -> 110 | E18: Type 5 | F18: Uddannelsesvejleder | G18: 0.5 | H18: 0.5 | I18: =Enhedspriskatalog!D62 -> 435398.6705 | J18: =Enhedspriskatalog!E62 -> 307.0512486
B19: Antal forløb i driftsperioden i alt | C19: =C18*C16 -> 330 | E19: Type 6 | F19: Metodekonsulent | G19: 0.5 | H19: 0.5 | I19: =Enhedspriskatalog!D45 -> 532122.3094 | J19: =Enhedspriskatalog!E45 -> 375.2625595
B20: Borgere | E20: Type 7 | F20: Frivillighedskoordinator | G20: 0.5 | H20: 0.5 | I20: =Enhedspriskatalog!D62 -> 435398.6705 | J20: =Enhedspriskatalog!E62 -> 307.0512486
B21: Borgere pr. forløb | C21: 1 | E21: Type 8 | F21: Jordemoder | G21: 0.5 | H21: 0.5 | I21: 346800 | J21: =I21/1418 -> 244.5698166
B22: Andel fuldførte borgerforløb | C22: 1
B23: Antal igangsatte borgerforløb pr. år | C23: =C15*C17 -> 110
B24: Antal gennemførte borgerforløb pr. år | C24: =C23*C22 -> 110
B25: Antal igangsatte borgerforløb over driftsperioden | C25: =C23*C16 -> 330
B26: Antal gennemførte borgerforløb over driftsperioden | C26: =C25*C22 -> 330
B27: Specifikation af aktører
B28: Aktør 1 | C28: Esbjerg kommune
B29: Aktør 2
B30: Aktør 3
B33: Ressourceforbrug | L33: Fordeling | P33: Baggrundsinfo
C34: Beskrivelse | D34: Enhed | E34: Angivet | F34: Antal | G34: Enhedspris | H34: Overhead (pct.) | I34: Enhedspris inkl. overhead | J34: Levetid (år) | L34: Fordeling af omkostninger (%) | P34: Baggrund 1 | S34: Baggrund 2
L35: =IF(C28="", "", C28) -> Esbjerg kommune | M35: =IF(C29="", "", C29) ->  | N35: =IF(C30="", "",C30) ->  | P35: Beskrivelse | Q35: værdi | S35: Beskrivelse | T35: værdi
B36: Forberedelse
B37: Løn til medarbejdertype 1 | D37: kr | F37: 1 | G37: =T37 -> 135064.5 | H37: 0.2 | I37: =IF(G37="", "", G37*(1+H37)) -> 162077.4 | J37: 10 | L37: 1 | P37: Det beregende antal timer i forberedelsesfasen pr. medarbejdergruppe | Q37: 1418/4=354,5 | S37: Den beregende løn pr. medarbejdergruppe i forberedelsesfasen | T37: =354.5*381 -> 135064.5
B38: Løn til medarbejdertype 2 | D38: kr | F38: 1 | G38: =T38 -> 85454.352 | H38: 0.2 | I38: 102545.2224 | J38: 10 | L38: 1 | P38: Det beregende antal timer i forberedelsesfasen pr. medarbejdergruppe | Q38: (1418*0,8)/4=306,3 | S38: Den beregende løn pr. medarbejdergruppe i forberedelsesfasen | T38: =306.288*279 -> 85454.352
B39: Løn til medarbejdertype 3 | D39: kr | F39: 1 | G39: 326494.5 | H39: 0.2 | I39: 391793.4 | J39: 10 | L39: 1 | P39: Det beregende antal timer i forberedelsesfasen pr. medarbejdergruppe | Q39: 1418/4=354,5 | S39: Den beregende løn pr. medarbejdergruppe i forberedelsesfasen | T39: =(354.5*307)*3 -> 326494.5
B40: Løn til medarbejdertype 4 | D40: kr | F40: 1 | G40: 163247.25 | H40: 0.2 | I40: 195896.7 | J40: 10 | L40: 1 | P40: Det beregende antal timer i forberedelsesfasen pr. medarbejdergruppe | Q40: 1418/4=354,5 | S40: Den beregende løn pr. medarbejdergruppe i forberedelsesfasen | T40: =(354.5*307)*1.5 -> 163247.25
B41: Løn til medarbejdertype 5 | D41: kr | F41: 1 | G41: 54415.75 | H41: 0.2 | I41: 65298.9 | J41: 10 | L41: 1 | P41: Det beregende antal timer i forberedelsesfasen pr. medarbejdergruppe | Q41: 1418/4=354,5 | S41: Den beregende løn pr. medarbejdergruppe i forberedelsesfasen | T41: =(354.5*307)*0.5 -> 54415.75
B42: Løn til medarbejdertype 6 | D42: kr | F42: 1 | G42: 54415.75 | H42: 0.2 | I42: 65298.9 | J42: 10 | L42: 1 | P42: Det beregende antal timer i forberedelsesfasen pr. medarbejdergruppe | Q42: 1418/4=354,5 | S42: Den beregende løn pr. medarbejdergruppe i forberedelsesfasen | T42: =(354.5*307)*0.5 -> 54415.75
B43: Løn til medarbejdertype 7 | D43: kr | F43: 1 | G43: 54415.75 | H43: 0.2 | I43: 65298.9 | J43: 10 | L43: 1 | P43: Det beregende antal timer i forberedelsesfasen pr. medarbejdergruppe | Q43: 1418/4=354,5 | S43: Den beregende løn pr. medarbejdergruppe i forberedelsesfasen | T43: =(354.5*307)*0.5 -> 54415.75
B44: Løn til medarbejdertype 8 | D44: kr | F44: 1 | G44: 54770.25 | H44: 0.2 | I44: 65724.3 | J44: 10 | L44: 1 | P44: Det beregende antal timer i forberedelsesfasen pr. medarbejdergruppe | Q44: 1418/4=354,5 | S44: Den beregende løn pr. medarbejdergruppe i forberedelsesfasen | T44: =(354.5*309)*0.5 -> 54770.25
B45: Kontorhold, indretning husleje | C45: Værdien dækker både indretning, husleje og kontorhold. Værdien er beregnet på Moderniseringsstyrelsens oversigt over statens gennemsnitlige udgifter til husleje pr. årsværk. | D45: kr | F45: 1 | G45: 140000 | H45: 0.2 | I45: 168000 | J45: 10 | L45: 1
B46: Yderlser købt eksternt | C46: Konkrete ydelser købt eksternt dækker bl.a. over ydelers købt hos en ekstern psykolog, fysioterapeut og andre eksterne. | D46: kr | F46: 1 | G46: 30000 | I46: 30000 | J46: 10 | L46: 1
B47: Uddannelse
B48: Efteruddannelse | C48: Der er tale om fælles interne uddannelses forløb, som afvikles løbende i takt med medarbejderuskiftning. Efteruddannelsen kan afoldes i grupper. | D48: kr | F48: 1 | G48: 100000 | I48: =IF(G48="", "", G48*(1+H48)) -> 100000 | J48: 1 | L48: 1
I49: =IF(G49="", "", G49*(1+H49)) -> 
B56: Drift af indsats | I56: =IF(G56="", "", G56*(1+H56)) -> 
I57: =IF(G57="", "", G57*(1+H57)) -> 
D58: kr
B59: Løn til medarbejdertype 1 | D59: kr | F59: 1 | G59: =I14 -> 539565.5894 | H59: 0.2 | I59: 647478.7072 | J59: 1 | L59: 1
B60: Løn til medarbejdertype 2 | D60: kr | F60: 1 | G60: 396314.4978 | H60: 0.2 | I60: 475577.3974 | J60: 1 | L60: 1
B61: Løn til medarbejdertype 3 | D61: kr | F61: 1 | G61: 435398.6705 | H61: 0.2 | I61: 522478.4046 | J61: 1 | L61: 1
B62: Løn til medarbejdertype 4 | D62: kr | F62: 1 | G62: 438457.8557 | H62: 0.2 | I62: 526149.4268 | J62: 1 | L62: 1
B63: Løn til medarbejdertype 5 | D63: kr | F63: 1 | G63: 435398.6705 | H63: 0.2 | I63: 522478.4046 | J63: 1 | L63: 1
B64: Løn til medarbejdertype 6 | D64: kr | F64: 1 | G64: 532122.3094 | H64: 0.2 | I64: =IF(G64="", "", G64*(1+H64)) -> 638546.7713 | J64: 1 | L64: 1
B65: Løn til medarbejdertype 7 | D65: kr | F65: 1 | G65: 435398.6705 | H65: 0.2 | I65: 522478.4046 | J65: 1 | L65: 1
B66: Løn til medarbejdertype 8 | D66: kr | F66: 1 | G66: 346800 | H66: 0.2 | I66: 416160 | J66: 1 | L66: 1
B72: Investeringer
I73: =IF(G73="", "", G73*(1+H73)) -> 
I74: =IF(G74="", "", G74*(1+H74)) -> 
B79: Øvrige omkostninger
B80: Kontorhold, indretning husleje | C80: Værdien dækker både indretning, husleje og kontorhold. Værdien er beregnet på Moderniseringsstyrelsens oversigt over statens gennemsnitlige udgifter til husleje pr. årsværk. | D80: kr | F80: 1 | G80: ='KPI Husleje '!G6 -> 546476.6216 | H80: 0.2 | I80: =IF(G80="", "", G80*(1+H80)) -> 655771.9459 | J80: 1 | L80: 1
B84: Ydelser købt eksternt | C84: Konkrete ydelser købt eksternt dækker bl.a. over ydelers købt hos en ekstern psykolog, fysioterapeut og andre eksterne. | D84: kr | F84: 1 | G84: 125000 | I84: 125000 | J84: 1 | L84: 1
B90: Tilskud
I91: =IF(G91="", "", G91*(1+H91)) -> 
I92: =IF(G92="", "", G92*(1+H92)) -> 
I93: =IF(G93="", "", G93*(1+H93)) -> 
I94: =IF(G94="", "", G94*(1+H94)) -> 
B95: Total

Sheet Beregning
B1: Beregning af omkostninger
B10: Beregning
C11: Total antal enheder i den angivne levetid | D11: Total omkostning i den angivne levetid | E11: Årlig omkostning | F11: NNV over hele perioden | H11: Omkostning pr forløb | I11: Omkostning pr igangsat borgerforløb | J11: Omkostning pr gennemført borgerforløb | L11: Årlig omk. Fordelt | O11: NNV fordelt | P11: Fordelt | R11: Omk. Pr forløb fordelt | S11: Fordelt | U11: Omk. Pr. igangsat borgerforløb fordelt | V11: Fordelt | X11: Omkostninger på gennemført borgerforløb fordelt | Y11: Fordelt
L12: =input!$C$28 -> Esbjerg kommune | M12: =input!$C$29 -> 0 | N12: =input!$C$30 -> 0 | O12: =input!$C$28 -> Esbjerg kommune | P12: =input!$C$29 -> 0 | Q12: =input!$C$30 -> 0 | R12: =input!$C$28 -> Esbjerg kommune | S12: =input!$C$29 -> 0 | T12: =input!$C$30 -> 0 | U12: =input!$C$28 -> Esbjerg kommune | V12: =input!$C$29 -> 0 | W12: =input!$C$30 -> 0 | X12: =input!$C$28 -> Esbjerg kommune | Y12: =input!$C$29 -> 0 | Z12: =input!$C$30 -> 0
B13: =IF(input!B36="", "", input!B36) -> Forberedelse | E13: =SUM(E14:E23) -> 155528.4111 | F13: =SUM(F14:F23) -> 448869.719 | H13: =SUM(H14:H23) -> 1413.894646 | I13: =SUM(I14:I23) -> 1413.894646 | J13: =SUM(J14:J23) -> 1413.894646 | L13: =SUM(L14:L23) -> 155528.4111 | M13: 0 | N13: 0 | O13: 448869.719 | P13: 0 | Q13: 0 | R13: 1413.894646 | S13: 0 | T13: 0 | U13: 1413.894646 | V13: 0 | W13: 0 | X13: =SUM(X14:X23) -> 1413.894646 | Y13: 0 | Z13: 0
B14: =IF(input!B37="", "", input!B37) -> Løn til medarbejdertype 1 | C14: 1 | D14: =IF(input!H37="",Beregning!C14*input!G37,Beregning!C14*input!I37) -> 162077.4 | E14: =IF(input!F37="", "", -PMT(Enhedspriskatalog!$B$6,input!J37,Beregning!D14, 0, 1)) -> 19214.11125 | F14: =IF(input!F37= "", "", -PV(Enhedspriskatalog!$B$6, input!$C$16,Beregning!E14,0, 1)) -> 55453.74416 | H14: =IF(E14= "", "", E14/input!$C$18) -> 174.6737386 | I14: =IF(E14="", "", E14/input!$C$23) -> 174.6737386 | J14: =IF(E14="", "", E14/input!$C$24) -> 174.6737386 | L14: =IF($E14="", "", $E14*input!L37) -> 19214.11125 | M14: =IF($E14="", "", $E14*input!M37) -> 0 | N14: =IF($E14="", "", $E14*input!N37) -> 0 | O14: =IF($F14="", "", $F14*input!L37) -> 55453.74416 | P14: =IF($F14="", "", $F14*input!M37) -> 0 | Q14: =IF($F14="", "", $F14*input!N37) -> 0 | R14: =IF($H14="", "", $H14*input!L37) -> 174.6737386 | S14: =IF($H14="", "", $H14*input!M37) -> 0 | T14: =IF($H14="", "", $H14*input!N37) -> 0 | U14: =IF($I14="", "",$I14*input!L37) -> 174.6737386 | V14: =IF($I14="", "",$I14*input!M37) -> 0 | W14: =IF($I14="", "",$I14*input!N37) -> 0 | X14: =IF($J14="", "", $J14*input!L37) -> 174.6737386 | Y14: =IF($J14="", "", $J14*input!M37) -> 0 | Z14: =IF($J14="", "", $J14*input!N37) -> 0
B15: =IF(input!B38="", "", input!B38) -> Løn til medarbejdertype 2 | C15: 1 | D15: =IF(input!H38="",Beregning!C15*input!G38,Beregning!C15*input!I38) -> 102545.2224 | E15: =IF(input!F38="", "", -PMT(Enhedspriskatalog!$B$6,input!J38,Beregning!D15, 0, 1)) -> 12156.63203 | F15: =IF(input!F38= "", "", -PV(Enhedspriskatalog!$B$6, input!$C$16,Beregning!E15,0, 1)) -> 35085.19095 | H15: =IF(E15= "", "", E15/input!$C$18) -> 110.5148366 | I15: =IF(E15="", "", E15/input!$C$23) -> 110.5148366 | J15: =IF(E15="", "", E15/input!$C$24) -> 110.5148366 | L15: =IF($E15="", "", $E15*input!L38) -> 12156.63203 | M15: =IF($E15="", "", $E15*input!M38) -> 0 | N15: =IF($E15="", "", $E15*input!N38) -> 0 | O15: =IF($F15="", "", $F15*input!L38) -> 35085.19095 | P15: =IF($F15="", "", $F15*input!M38) -> 0 | Q15: =IF($F15="", "", $F15*input!N38) -> 0 | R15: =IF($H15="", "", $H15*input!L38) -> 110.5148366 | S15: =IF($H15="", "", $H15*input!M38) -> 0 | T15: =IF($H15="", "", $H15*input!N38) -> 0 | U15: =IF($I15="", "",$I15*input!L38) -> 110.5148366 | V15: =IF($I15="", "",$I15*input!M38) -> 0 | W15: =IF($I15="", "",$I15*input!N38) -> 0 | X15: =IF($J15="", "", $J15*input!L38) -> 110.5148366 | Y15: =IF($J15="", "", $J15*input!M38) -> 0 | Z15: =IF($J15="", "", $J15*input!N38) -> 0
B16: =IF(input!B39="", "", input!B39) -> Løn til medarbejdertype 3 | C16: 1 | D16: =IF(input!H39="",Beregning!C16*input!G39,Beregning!C16*input!I39) -> 391793.4 | E16: =IF(input!F39="", "", -PMT(Enhedspriskatalog!$B$6,input!J39,Beregning!D16, 0, 1)) -> 46446.70987 | F16: =IF(input!F39= "", "", -PV(Enhedspriskatalog!$B$6, input!$C$16,Beregning!E16,0, 1)) -> 134049.602 | H16: =IF(E16= "", "", E16/input!$C$18) -> 422.242817 | I16: =IF(E16="", "", E16/input!$C$23) -> 422.242817 | J16: =IF(E16="", "", E16/input!$C$24) -> 422.242817 | L16: =IF($E16="", "", $E16*input!L39) -> 46446.70987 | M16: =IF($E16="", "", $E16*input!M39) -> 0 | N16: =IF($E16="", "", $E16*input!N39) -> 0 | O16: =IF($F16="", "", $F16*input!L39) -> 134049.602 | P16: =IF($F16="", "", $F16*input!M39) -> 0 | Q16: =IF($F16="", "", $F16*input!N39) -> 0 | R16: =IF($H16="", "", $H16*input!L39) -> 422.242817 | S16: =IF($H16="", "", $H16*input!M39) -> 0 | T16: =IF($H16="", "", $H16*input!N39) -> 0 | U16: =IF($I16="", "",$I16*input!L39) -> 422.242817 | V16: =IF($I16="", "",$I16*input!M39) -> 0 | W16: =IF($I16="", "",$I16*input!N39) -> 0 | X16: =IF($J16="", "", $J16*input!L39) -> 422.242817 | Y16: =IF($J16="", "", $J16*input!M39) -> 0 | Z16: =IF($J16="", "", $J16*input!N39) -> 0
B17: =IF(input!B40="", "", input!B40) -> Løn til medarbejdertype 4 | C17: 1 | D17: =IF(input!H40="",Beregning!C17*input!G40,Beregning!C17*input!I40) -> 195896.7 | E17: =IF(input!F40="", "", -PMT(Enhedspriskatalog!$B$6,input!J40,Beregning!D17, 0, 1)) -> 23223.35494 | F17: =IF(input!F40= "", "", -PV(Enhedspriskatalog!$B$6, input!$C$16,Beregning!E17,0, 1)) -> 67024.80101 | H17: =IF(E17= "", "", E17/input!$C$18) -> 211.1214085 | I17: =IF(E17="", "", E17/input!$C$23) -> 211.1214085 | J17: =IF(E17="", "", E17/input!$C$24) -> 211.1214085 | L17: =IF($E17="", "", $E17*input!L40) -> 23223.35494 | M17: =IF($E17="", "", $E17*input!M40) -> 0 | N17: =IF($E17="", "", $E17*input!N40) -> 0 | O17: =IF($F17="", "", $F17*input!L40) -> 67024.80101 | P17: =IF($F17="", "", $F17*input!M40) -> 0 | Q17: =IF($F17="", "", $F17*input!N40) -> 0 | R17: =IF($H17="", "", $H17*input!L40) -> 211.1214085 | S17: =IF($H17="", "", $H17*input!M40) -> 0 | T17: =IF($H17="", "", $H17*input!N40) -> 0 | U17: =IF($I17="", "",$I17*input!L40) -> 211.1214085 | V17: =IF($I17="", "",$I17*input!M40) -> 0 | W17: =IF($I17="", "",$I17*input!N40) -> 0 | X17: =IF($J17="", "", $J17*input!L40) -> 211.1214085 | Y17: =IF($J17="", "", $J17*input!M40) -> 0 | Z17: =IF($J17="", "", $J17*input!N40) -> 0
B18: =IF(input!B41="", "", input!B41) -> Løn til medarbejdertype 5 | C18: 1 | D18: =IF(input!H41="",Beregning!C18*input!G41,Beregning!C18*input!I41) -> 65298.9 | E18: =IF(input!F41="", "", -PMT(Enhedspriskatalog!$B$6,input!J41,Beregning!D18, 0, 1)) -> 7741.118312 | F18: =IF(input!F41= "", "", -PV(Enhedspriskatalog!$B$6, input!$C$16,Beregning!E18,0, 1)) -> 22341.60034 | H18: =IF(E18= "", "", E18/input!$C$18) -> 70.37380284 | I18: =IF(E18="", "", E18/input!$C$23) -> 70.37380284 | J18: =IF(E18="", "", E18/input!$C$24) -> 70.37380284 | L18: =IF($E18="", "", $E18*input!L41) -> 7741.118312 | M18: =IF($E18="", "", $E18*input!M41) -> 0 | N18: =IF($E18="", "", $E18*input!N41) -> 0 | O18: =IF($F18="", "", $F18*input!L41) -> 22341.60034 | P18: =IF($F18="", "", $F18*input!M41) -> 0 | Q18: =IF($F18="", "", $F18*input!N41) -> 0 | R18: =IF($H18="", "", $H18*input!L41) -> 70.37380284 | S18: =IF($H18="", "", $H18*input!M41) -> 0 | T18: =IF($H18="", "", $H18*input!N41) -> 0 | U18: =IF($I18="", "",$I18*input!L41) -> 70.37380284 | V18: =IF($I18="", "",$I18*input!M41) -> 0 | W18: =IF($I18="", "",$I18*input!N41) -> 0 | X18: =IF($J18="", "", $J18*input!L41) -> 70.37380284 | Y18: =IF($J18="", "", $J18*input!M41) -> 0 | Z18: =IF($J18="", "", $J18*input!N41) -> 0
B19: =IF(input!B42="", "", input!B42) -> Løn til medarbejdertype 6 | C19: 1 | D19: =IF(input!H42="",Beregning!C19*input!G42,Beregning!C19*input!I42) -> 65298.9 | E19: =IF(input!F42="", "", -PMT(Enhedspriskatalog!$B$6,input!J42,Beregning!D19, 0, 1)) -> 7741.118312 | F19: =IF(input!F42= "", "", -PV(Enhedspriskatalog!$B$6, input!$C$16,Beregning!E19,0, 1)) -> 22341.60034 | H19: =IF(E19= "", "", E19/input!$C$18) -> 70.37380284 | I19: =IF(E19="", "", E19/input!$C$23) -> 70.37380284 | J19: =IF(E19="", "", E19/input!$C$24) -> 70.37380284 | L19: =IF($E19="", "", $E19*input!L42) -> 7741.118312 | M19: =IF($E19="", "", $E19*input!M42) -> 0 | N19: =IF($E19="", "", $E19*input!N42) -> 0 | O19: =IF($F19="", "", $F19*input!L42) -> 22341.60034 | P19: =IF($F19="", "", $F19*input!M42) -> 0 | Q19: =IF($F19="", "", $F19*input!N42) -> 0 | R19: =IF($H19="", "", $H19*input!L42) -> 70.37380284 | S19: =IF($H19="", "", $H19*input!M42) -> 0 | T19: =IF($H19="", "", $H19*input!N42) -> 0 | U19: =IF($I19="", "",$I19*input!L42) -> 70.37380284 | V19: =IF($I19="", "",$I19*input!M42) -> 0 | W19: =IF($I19="", "",$I19*input!N42) -> 0 | X19: =IF($J19="", "", $J19*input!L42) -> 70.37380284 | Y19: =IF($J19="", "", $J19*input!M42) -> 0 | Z19: =IF($J19="", "", $J19*input!N42) -> 0
B20: =IF(input!B43="", "", input!B43) -> Løn til medarbejdertype 7 | C20: 1 | D20: =IF(input!H43="",Beregning!C20*input!G43,Beregning!C20*input!I43) -> 65298.9 | E20: =IF(input!F43="", "", -PMT(Enhedspriskatalog!$B$6,input!J43,Beregning!D20, 0, 1)) -> 7741.118312 | F20: =IF(input!F43= "", "", -PV(Enhedspriskatalog!$B$6, input!$C$16,Beregning!E20,0, 1)) -> 22341.60034 | H20: =IF(E20= "", "", E20/input!$C$18) -> 70.37380284 | I20: =IF(E20="", "", E20/input!$C$23) -> 70.37380284 | J20: =IF(E20="", "", E20/input!$C$24) -> 70.37380284 | L20: =IF($E20="", "", $E20*input!L43) -> 7741.118312 | M20: =IF($E20="", "", $E20*input!M43) -> 0 | N20: =IF($E20="", "", $E20*input!N43) -> 0 | O20: =IF($F20="", "", $F20*input!L43) -> 22341.60034 | P20: =IF($F20="", "", $F20*input!M43) -> 0 | Q20: =IF($F20="", "", $F20*input!N43) -> 0 | R20: =IF($H20="", "", $H20*input!L43) -> 70.37380284 | S20: =IF($H20="", "", $H20*input!M43) -> 0 | T20: =IF($H20="", "", $H20*input!N43) -> 0 | U20: =IF($I20="", "",$I20*input!L43) -> 70.37380284 | V20: =IF($I20="", "",$I20*input!M43) -> 0 | W20: =IF($I20="", "",$I20*input!N43) -> 0 | X20: =IF($J20="", "", $J20*input!L43) -> 70.37380284 | Y20: =IF($J20="", "", $J20*input!M43) -> 0 | Z20: =IF($J20="", "", $J20*input!N43) -> 0
B21: =IF(input!B44="", "", input!B44) -> Løn til medarbejdertype 8 | C21: 1 | D21: =IF(input!H44="",Beregning!C21*input!G44,Beregning!C21*input!I44) -> 65724.3 | E21: =IF(input!F44="", "", -PMT(Enhedspriskatalog!$B$6,input!J44,Beregning!D21, 0, 1)) -> 7791.54905 | F21: =IF(input!F44= "", "", -PV(Enhedspriskatalog!$B$6, input!$C$16,Beregning!E21,0, 1)) -> 22487.14822 | H21: =IF(E21= "", "", E21/input!$C$18) -> 70.83226409 | I21: =IF(E21="", "", E21/input!$C$23) -> 70.83226409 | J21: =IF(E21="", "", E21/input!$C$24) -> 70.83226409 | L21: =IF($E21="", "", $E21*input!L44) -> 7791.54905 | M21: =IF($E21="", "", $E21*input!M44) -> 0 | N21: =IF($E21="", "", $E21*input!N44) -> 0 | O21: =IF($F21="", "", $F21*input!L44) -> 22487.14822 | P21: =IF($F21="", "", $F21*input!M44) -> 0 | Q21: =IF($F21="", "", $F21*input!N44) -> 0 | R21: =IF($H21="", "", $H21*input!L44) -> 70.83226409 | S21: =IF($H21="", "", $H21*input!M44) -> 0 | T21: =IF($H21="", "", $H21*input!N44) -> 0 | U21: =IF($I21="", "",$I21*input!L44) -> 70.83226409 | V21: =IF($I21="", "",$I21*input!M44) -> 0 | W21: =IF($I21="", "",$I21*input!N44) -> 0 | X21: =IF($J21="", "", $J21*input!L44) -> 70.83226409 | Y21: =IF($J21="", "", $J21*input!M44) -> 0 | Z21: =IF($J21="", "", $J21*input!N44) -> 0
B22: =IF(input!B45="", "", input!B45) -> Kontorhold, indretning husleje | C22: 1 | D22: =IF(input!H45="",Beregning!C22*input!G45,Beregning!C22*input!I45) -> 168000 | E22: =IF(input!F45="", "", -PMT(Enhedspriskatalog!$B$6,input!J45,Beregning!D22, 0, 1)) -> 19916.22947 | F22: =IF(input!F45= "", "", -PV(Enhedspriskatalog!$B$6, input!$C$16,Beregning!E22,0, 1)) -> 57480.12381 | H22: =IF(E22= "", "", E22/input!$C$18) -> 181.0566315 | I22: =IF(E22="", "", E22/input!$C$23) -> 181.0566315 | J22: =IF(E22="", "", E22/input!$C$24) -> 181.0566315 | L22: =IF($E22="", "", $E22*input!L45) -> 19916.22947 | M22: =IF($E22="", "", $E22*input!M45) -> 0 | N22: =IF($E22="", "", $E22*input!N45) -> 0 | O22: =IF($F22="", "", $F22*input!L45) -> 57480.12381 | P22: =IF($F22="", "", $F22*input!M45) -> 0 | Q22: =IF($F22="", "", $F22*input!N45) -> 0 | R22: =IF($H22="", "", $H22*input!L45) -> 181.0566315 | S22: =IF($H22="", "", $H22*input!M45) -> 0 | T22: =IF($H22="", "", $H22*input!N45) -> 0 | U22: =IF($I22="", "",$I22*input!L45) -> 181.0566315 | V22: =IF($I22="", "",$I22*input!M45) -> 0 | W22: =IF($I22="", "",$I22*input!N45) -> 0 | X22: =IF($J22="", "", $J22*input!L45) -> 181.0566315 | Y22: =IF($J22="", "", $J22*input!M45) -> 0 | Z22: =IF($J22="", "", $J22*input!N45) -> 0
B23: =IF(input!B46="", "", input!B46) -> Yderlser købt eksternt | C23: 1 | D23: =IF(input!H46="",Beregning!C23*input!G46,Beregning!C23*input!I46) -> 30000 | E23: =IF(input!F46="", "", -PMT(Enhedspriskatalog!$B$6,input!J46,Beregning!D23, 0, 1)) -> 3556.469548 | F23: =IF(input!F46= "", "", -PV(Enhedspriskatalog!$B$6, input!$C$16,Beregning!E23,0, 1)) -> 10264.30782 | H23: =IF(E23= "", "", E23/input!$C$18) -> 32.33154135 | I23: =IF(E23="", "", E23/input!$C$23) -> 32.33154135 | J23: =IF(E23="", "", E23/input!$C$24) -> 32.33154135 | L23: =IF($E23="", "", $E23*input!L46) -> 3556.469548 | M23: =IF($E23="", "", $E23*input!M46) -> 0 | N23: =IF($E23="", "", $E23*input!N46) -> 0 | O23: =IF($F23="", "", $F23*input!L46) -> 10264.30782 | P23: =IF($F23="", "", $F23*input!M46) -> 0 | Q23: =IF($F23="", "", $F23*input!N46) -> 0 | R23: =IF($H23="", "", $H23*input!L46) -> 32.33154135 | S23: =IF($H23="", "", $H23*input!M46) -> 0 | T23: =IF($H23="", "", $H23*input!N46) -> 0 | U23: =IF($I23="", "",$I23*input!L46) -> 32.33154135 | V23: =IF($I23="", "",$I23*input!M46) -> 0 | W23: =IF($I23="", "",$I23*input!N46) -> 0 | X23: =IF($J23="", "", $J23*input!L46) -> 32.33154135 | Y23: =IF($J23="", "", $J23*input!M46) -> 0 | Z23: =IF($J23="", "", $J23*input!N46) -> 0
B24: =IF(input!B47="", "", input!B47) -> Uddannelse | E24: =SUM(E25:E32) -> 100000 | F24: =SUM(F25:F32) -> 288609.4675 | H24: =SUM(H25:H32) -> 909.0909091 | I24: =SUM(I25:I32) -> 909.0909091 | J24: =SUM(J25:J32) -> 909.0909091 | L24: =SUM(L25:L32) -> 100000 | M24: 0 | N24: 0 | O24: 288609.4675 | P24: 0 | Q24: 0 | R24: 909.0909091 | S24: 0 | T24: 0 | U24: 909.0909091 | V24: 0 | W24: 0 | X24: 909.0909091 | Y24: 0 | Z24: 0
B25: =IF(input!B48="", "", input!B48) -> Efteruddannelse | C25: 1 | D25: =IF(input!H48="",Beregning!C25*input!G48,Beregning!C25*input!I48) -> 100000 | E25: =IF(input!F48="", "", -PMT(Enhedspriskatalog!$B$6,input!J48,Beregning!D25, 0, 1)) -> 100000 | F25: =IF(input!F48= "", "", -PV(Enhedspriskatalog!$B$6, input!$C$16,Beregning!E25,0, 1)) -> 288609.4675 | H25: =IF(E25= "", "", E25/input!$C$18) -> 909.0909091 | I25: =IF(E25="", "", E25/input!$C$23) -> 909.0909091 | J25: =IF(E25="", "", E25/input!$C$24) -> 909.0909091 | L25: =IF($E25="", "", $E25*input!L48) -> 100000 | M25: =IF($E25="", "", $E25*input!M48) -> 0 | N25: =IF($E25="", "", $E25*input!N48) -> 0 | O25: =IF($F25="", "", $F25*input!L48) -> 288609.4675 | P25: =IF($F25="", "", $F25*input!M48) -> 0 | Q25: =IF($F25="", "", $F25*input!N48) -> 0 | R25: =IF($H25="", "", $H25*input!L48) -> 909.0909091 | S25: =IF($H25="", "", $H25*input!M48) -> 0 | T25: =IF($H25="", "", $H25*input!N48) -> 0 | U25: =IF($I25="", "",$I25*input!L48) -> 909.0909091 | V25: =IF($I25="", "",$I25*input!M48) -> 0 | W25: =IF($I25="", "",$I25*input!N48) -> 0 | X25: =IF($J25="", "", $J25*input!L48) -> 909.0909091 | Y25: =IF($J25="", "", $J25*input!M48) -> 0 | Z25: =IF($J25="", "", $J25*input!N48) -> 0
B26: =IF(input!B49="", "", input!B49) ->  | D26: =IF(input!H49="",Beregning!C26*input!G49,Beregning!C26*input!I49) -> 0 | E26: =IF(input!F49="", "", -PMT(Enhedspriskatalog!$B$6,input!J49,Beregning!D26, 0, 1)) ->  | F26: =IF(input!F49= "", "", -PV(Enhedspriskatalog!$B$6, input!$C$16,Beregning!E26,0, 1)) ->  | H26: =IF(E26= "", "", E26/input!$C$18) ->  | I26: =IF(E26="", "", E26/input!$C$23) ->  | J26: =IF(E26="", "", E26/input!$C$24) ->  | L26: =IF($E26="", "", $E26*input!L49) ->  | M26: =IF($E26="", "", $E26*input!M49) ->  | N26: =IF($E26="", "", $E26*input!N49) ->  | O26: =IF($F26="", "", $F26*input!L49) ->  | P26: =IF($F26="", "", $F26*input!M49) ->  | Q26: =IF($F26="", "", $F26*input!N49) ->  | R26: =IF($H26="", "", $H26*input!L49) ->  | S26: =IF($H26="", "", $H26*input!M49) ->  | T26: =IF($H26="", "", $H26*input!N49) ->  | U26: =IF($I26="", "",$I26*input!L49) ->  | V26: =IF($I26="", "",$I26*input!M49) ->  | W26: =IF($I26="", "",$I26*input!N49) ->  | X26: =IF($J26="", "", $J26*input!L49) ->  | Y26: =IF($J26="", "", $J26*input!M49) ->  | Z26: =IF($J26="", "", $J26*input!N49) -> 
B27: =IF(input!B50="", "", input!B50) ->  | D27: =IF(input!H50="",Beregning!C27*input!G50,Beregning!C27*input!I50) -> 0 | E27: =IF(input!F50="", "", -PMT(Enhedspriskatalog!$B$6,input!J50,Beregning!D27, 0, 1)) ->  | F27: =IF(input!F50= "", "", -PV(Enhedspriskatalog!$B$6, input!$C$16,Beregning!E27,0, 1)) ->  | H27: =IF(E27= "", "", E27/input!$C$18) ->  | I27: =IF(E27="", "", E27/input!$C$23) ->  | J27: =IF(E27="", "", E27/input!$C$24) ->  | L27: =IF($E27="", "", $E27*input!L50) ->  | M27: =IF($E27="", "", $E27*input!M50) ->  | N27: =IF($E27="", "", $E27*input!N50) ->  | O27: =IF($F27="", "", $F27*input!L50) ->  | P27: =IF($F27="", "", $F27*input!M50) ->  | Q27: =IF($F27="", "", $F27*input!N50) ->  | R27: =IF($H27="", "", $H27*input!L50) ->  | S27: =IF($H27="", "", $H27*input!M50) ->  | T27: =IF($H27="", "", $H27*input!N50) ->  | U27: =IF($I27="", "",$I27*input!L50) ->  | V27: =IF($I27="", "",$I27*input!M50) ->  | W27: =IF($I27="", "",$I27*input!N50) ->  | X27: =IF($J27="", "", $J27*input!L50) ->  | Y27: =IF($J27="", "", $J27*input!M50) ->  | Z27: =IF($J27="", "", $J27*input!N50) -> 
B28: =IF(input!B51="", "", input!B51) ->  | D28: =IF(input!H51="",Beregning!C28*input!G51,Beregning!C28*input!I51) -> 0 | E28: =IF(input!F51="", "", -PMT(Enhedspriskatalog!$B$6,input!J51,Beregning!D28, 0, 1)) ->  | F28: =IF(input!F51= "", "", -PV(Enhedspriskatalog!$B$6, input!$C$16,Beregning!E28,0, 1)) ->  | H28: =IF(E28= "", "", E28/input!$C$18) ->  | I28: =IF(E28="", "", E28/input!$C$23) ->  | J28: =IF(E28="", "", E28/input!$C$24) ->  | L28: =IF($E28="", "", $E28*input!L51) ->  | M28: =IF($E28="", "", $E28*input!M51) ->  | N28: =IF($E28="", "", $E28*input!N51) ->  | O28: =IF($F28="", "", $F28*input!L51) ->  | P28: =IF($F28="", "", $F28*input!M51) ->  | Q28: =IF($F28="", "", $F28*input!N51) ->  | R28: =IF($H28="", "", $H28*input!L51) ->  | S28: =IF($H28="", "", $H28*input!M51) ->  | T28: =IF($H28="", "", $H28*input!N51) ->  | U28: =IF($I28="", "",$I28*input!L51) ->  | V28: =IF($I28="", "",$I28*input!M51) ->  | W28: =IF($I28="", "",$I28*input!N51) ->  | X28: =IF($J28="", "", $J28*input!L51) ->  | Y28: =IF($J28="", "", $J28*input!M51) ->  | Z28: =IF($J28="", "", $J28*input!N51) -> 
B29: =IF(input!B52="", "", input!B52) ->  | D29: =IF(input!H52="",Beregning!C29*input!G52,Beregning!C29*input!I52) -> 0 | E29: =IF(input!F52="", "", -PMT(Enhedspriskatalog!$B$6,input!J52,Beregning!D29, 0, 1)) ->  | F29: =IF(input!F52= "", "", -PV(Enhedspriskatalog!$B$6, input!$C$16,Beregning!E29,0, 1)) ->  | H29: =IF(E29= "", "", E29/input!$C$18) ->  | I29: =IF(E29="", "", E29/input!$C$23) ->  | J29: =IF(E29="", "", E29/input!$C$24) ->  | L29: =IF($E29="", "", $E29*input!L52) ->  | M29: =IF($E29="", "", $E29*input!M52) ->  | N29: =IF($E29="", "", $E29*input!N52) ->  | O29: =IF($F29="", "", $F29*input!L52) ->  | P29: =IF($F29="", "", $F29*input!M52) ->  | Q29: =IF($F29="", "", $F29*input!N52) ->  | R29: =IF($H29="", "", $H29*input!L52) ->  | S29: =IF($H29="", "", $H29*input!M52) ->  | T29: =IF($H29="", "", $H29*input!N52) ->  | U29: =IF($I29="", "",$I29*input!L52) ->  | V29: =IF($I29="", "",$I29*input!M52) ->  | W29: =IF($I29="", "",$I29*input!N52) ->  | X29: =IF($J29="", "", $J29*input!L52) ->  | Y29: =IF($J29="", "", $J29*input!M52) ->  | Z29: =IF($J29="", "", $J29*input!N52) -> 
B30: =IF(input!B53="", "", input!B53) ->  | D30: =IF(input!H53="",Beregning!C30*input!G53,Beregning!C30*input!I53) -> 0 | E30: =IF(input!F53="", "", -PMT(Enhedspriskatalog!$B$6,input!J53,Beregning!D30, 0, 1)) ->  | F30: =IF(input!F53= "", "", -PV(Enhedspriskatalog!$B$6, input!$C$16,Beregning!E30,0, 1)) ->  | H30: =IF(E30= "", "", E30/input!$C$18) ->  | I30: =IF(E30="", "", E30/input!$C$23) ->  | J30: =IF(E30="", "", E30/input!$C$24) ->  | L30: =IF($E30="", "", $E30*input!L53) ->  | M30: =IF($E30="", "", $E30*input!M53) ->  | N30: =IF($E30="", "", $E30*input!N53) ->  | O30: =IF($F30="", "", $F30*input!L53) ->  | P30: =IF($F30="", "", $F30*input!M53) ->  | Q30: =IF($F30="", "", $F30*input!N53) ->  | R30: =IF($H30="", "", $H30*input!L53) ->  | S30: =IF($H30="", "", $H30*input!M53) ->  | T30: =IF($H30="", "", $H30*input!N53) ->  | U30: =IF($I30="", "",$I30*input!L53) ->  | V30: =IF($I30="", "",$I30*input!M53) ->  | W30: =IF($I30="", "",$I30*input!N53) ->  | X30: =IF($J30="", "", $J30*input!L53) ->  | Y30: =IF($J30="", "", $J30*input!M53) ->  | Z30: =IF($J30="", "", $J30*input!N53) -> 
B31: =IF(input!B54="", "", input!B54) ->  | D31: =IF(input!H54="",Beregning!C31*input!G54,Beregning!C31*input!I54) -> 0 | E31: =IF(input!F54="", "", -PMT(Enhedspriskatalog!$B$6,input!J54,Beregning!D31, 0, 1)) ->  | F31: =IF(input!F54= "", "", -PV(Enhedspriskatalog!$B$6, input!$C$16,Beregning!E31,0, 1)) ->  | H31: =IF(E31= "", "", E31/input!$C$18) ->  | I31: =IF(E31="", "", E31/input!$C$23) ->  | J31: =IF(E31="", "", E31/input!$C$24) ->  | L31: =IF($E31="", "", $E31*input!L54) ->  | M31: =IF($E31="", "", $E31*input!M54) ->  | N31: =IF($E31="", "", $E31*input!N54) ->  | O31: =IF($F31="", "", $F31*input!L54) ->  | P31: =IF($F31="", "", $F31*input!M54) ->  | Q31: =IF($F31="", "", $F31*input!N54) ->  | R31: =IF($H31="", "", $H31*input!L54) ->  | S31: =IF($H31="", "", $H31*input!M54) ->  | T31: =IF($H31="", "", $H31*input!N54) ->  | U31: =IF($I31="", "",$I31*input!L54) ->  | V31: =IF($I31="", "",$I31*input!M54) ->  | W31: =IF($I31="", "",$I31*input!N54) ->  | X31: =IF($J31="", "", $J31*input!L54) ->  | Y31: =IF($J31="", "", $J31*input!M54) ->  | Z31: =IF($J31="", "", $J31*input!N54) -> 
B32: =IF(input!B55="", "", input!B55) ->  | D32: =IF(input!H55="",Beregning!C32*input!G55,Beregning!C32*input!I55) -> 0 | E32: =IF(input!F55="", "", -PMT(Enhedspriskatalog!$B$6,input!J55,Beregning!D32, 0, 1)) ->  | F32: =IF(input!F55= "", "", -PV(Enhedspriskatalog!$B$6, input!$C$16,Beregning!E32,0, 1)) ->  | H32: =IF(E32= "", "", E32/input!$C$18) ->  | I32: =IF(E32="", "", E32/input!$C$23) ->  | J32: =IF(E32="", "", E32/input!$C$24) ->  | L32: =IF($E32="", "", $E32*input!L55) ->  | M32: =IF($E32="", "", $E32*input!M55) ->  | N32: =IF($E32="", "", $E32*input!N55) ->  | O32: =IF($F32="", "", $F32*input!L55) ->  | P32: =IF($F32="", "", $F32*input!M55) ->  | Q32: =IF($F32="", "", $F32*input!N55) ->  | R32: =IF($H32="", "", $H32*input!L55) ->  | S32: =IF($H32="", "", $H32*input!M55) ->  | T32: =IF($H32="", "", $H32*input!N55) ->  | U32: =IF($I32="", "",$I32*input!L55) ->  | V32: =IF($I32="", "",$I32*input!M55) ->  | W32: =IF($I32="", "",$I32*input!N55) ->  | X32: =IF($J32="", "", $J32*input!L55) ->  | Y32: =IF($J32="", "", $J32*input!M55) ->  | Z32: =IF($J32="", "", $J32*input!N55) -> 
B33: =IF(input!B56="", "", input!B56) -> Drift af indsats | E33: =SUM(E34:E48) -> 4529547.249 | F33: =SUM(F34:F48) -> 13072702.19 | H33: =SUM(H34:H48) -> 41177.70226 | I33: =SUM(I34:I48) -> 41177.70226 | J33: =SUM(J34:J48) -> 41177.70226 | L33: =SUM(L34:L48) -> 4529547.249 | M33: =SUM(M34:M48) -> 0 | N33: =SUM(N34:N48) -> 0 | O33: =SUM(O34:O48) -> 13072702.19 | P33: =SUM(P34:P48) -> 0 | Q33: 0 | R33: =SUM(R34:R48) -> 41177.70226 | S33: 0 | T33: 0 | U33: =SUM(U34:U48) -> 41177.70226 | V33: 0 | W33: 0 | X33: =SUM(X34:X48) -> 41177.70226 | Y33: 0 | Z33: 0
B34: =IF(input!B57="", "", input!B57) ->  | D34: =IF(input!H57="",Beregning!C34*input!G57,Beregning!C34*input!I57) -> 0 | E34: =IF(input!F57="", "", -PMT(Enhedspriskatalog!$B$6,input!J57,Beregning!D34, 0, 1)) ->  | F34: =IF(input!F57= "", "", -PV(Enhedspriskatalog!$B$6, input!$C$16,Beregning!E34,0, 1)) ->  | H34: =IF(E34= "", "", E34/input!$C$18) ->  | I34: =IF(E34="", "", E34/input!$C$23) ->  | J34: =IF(E34="", "", E34/input!$C$24) ->  | L34: =IF($E34="", "", $E34*input!L57) ->  | M34: =IF($E34="", "", $E34*input!M57) ->  | N34: =IF($E34="", "", $E34*input!N57) ->  | O34: =IF($F34="", "", $F34*input!L57) ->  | P34: =IF($F34="", "", $F34*input!M57) ->  | Q34: =IF($F34="", "", $F34*input!N57) ->  | R34: =IF($H34="", "", $H34*input!L57) ->  | S34: =IF($H34="", "", $H34*input!M57) ->  | T34: =IF($H34="", "", $H34*input!N57) ->  | U34: =IF($I34="", "",$I34*input!L57) ->  | V34: =IF($I34="", "",$I34*input!M57) ->  | W34: =IF($I34="", "",$I34*input!N57) ->  | X34: =IF($J34="", "", $J34*input!L57) ->  | Y34: =IF($J34="", "", $J34*input!M57) ->  | Z34: =IF($J34="", "", $J34*input!N57) -> 
B35: =IF(input!B58="", "", input!B58) ->  | D35: =IF(input!H58="",Beregning!C35*input!G58,Beregning!C35*input!I58) -> 0 | E35: =IF(input!F58="", "", -PMT(Enhedspriskatalog!$B$6,input!J58,Beregning!D35, 0, 1)) ->  | F35: =IF(input!F58= "", "", -PV(Enhedspriskatalog!$B$6, input!$C$16,Beregning!E35,0, 1)) ->  | H35: =IF(E35= "", "", E35/input!$C$18) ->  | I35: =IF(E35="", "", E35/input!$C$23) ->  | J35: =IF(E35="", "", E35/input!$C$24) ->  | L35: =IF($E35="", "", $E35*input!L58) ->  | M35: =IF($E35="", "", $E35*input!M58) ->  | N35: =IF($E35="", "", $E35*input!N58) ->  | O35: =IF($F35="", "", $F35*input!L58) ->  | P35: =IF($F35="", "", $F35*input!M58) ->  | Q35: =IF($F35="", "", $F35*input!N58) ->  | R35: =IF($H35="", "", $H35*input!L58) ->  | S35: =IF($H35="", "", $H35*input!M58) ->  | T35: =IF($H35="", "", $H35*input!N58) ->  | U35: =IF($I35="", "",$I35*input!L58) ->  | V35: =IF($I35="", "",$I35*input!M58) ->  | W35: =IF($I35="", "",$I35*input!N58) ->  | X35: =IF($J35="", "", $J35*input!L58) ->  | Y35: =IF($J35="", "", $J35*input!M58) ->  | Z35: =IF($J35="", "", $J35*input!N58) -> 
B36: =IF(input!B59="", "", input!B59) -> Løn til medarbejdertype 1 | C36: 1 | D36: =IF(input!H59="",Beregning!C36*input!G59,Beregning!C36*input!I59) -> 647478.7072 | E36: =IF(input!F59="", "", -PMT(Enhedspriskatalog!$B$6,input!J59,Beregning!D36, 0, 1)) -> 647478.7072 | F36: =IF(input!F59= "", "", -PV(Enhedspriskatalog!$B$6, input!$C$16,Beregning!E36,0, 1)) -> 1868684.849 | H36: =IF(E36= "", "", E36/input!$C$18) -> 5886.170066 | I36: =IF(E36="", "", E36/input!$C$23) -> 5886.170066 | J36: =IF(E36="", "", E36/input!$C$24) -> 5886.170066 | L36: =IF($E36="", "", $E36*input!L59) -> 647478.7072 | M36: =IF($E36="", "", $E36*input!M59) -> 0 | N36: =IF($E36="", "", $E36*input!N59) -> 0 | O36: =IF($F36="", "", $F36*input!L59) -> 1868684.849 | P36: =IF($F36="", "", $F36*input!M59) -> 0 | Q36: =IF($F36="", "", $F36*input!N59) -> 0 | R36: =IF($H36="", "", $H36*input!L59) -> 5886.170066 | S36: =IF($H36="", "", $H36*input!M59) -> 0 | T36: =IF($H36="", "", $H36*input!N59) -> 0 | U36: =IF($I36="", "",$I36*input!L59) -> 5886.170066 | V36: =IF($I36="", "",$I36*input!M59) -> 0 | W36: =IF($I36="", "",$I36*input!N59) -> 0 | X36: =IF($J36="", "", $J36*input!L59) -> 5886.170066 | Y36: =IF($J36="", "", $J36*input!M59) -> 0 | Z36: =IF($J36="", "", $J36*input!N59) -> 0
B37: =IF(input!B60="", "", input!B60) -> Løn til medarbejdertype 2 | C37: 1 | D37: =IF(input!H60="",Beregning!C37*input!G60,Beregning!C37*input!I60) -> 475577.3974 | E37: =IF(input!F60="", "", -PMT(Enhedspriskatalog!$B$6,input!J60,Beregning!D37, 0, 1)) -> 475577.3974 | F37: =IF(input!F60= "", "", -PV(Enhedspriskatalog!$B$6, input!$C$16,Beregning!E37,0, 1)) -> 1372561.394 | H37: =IF(E37= "", "", E37/input!$C$18) -> 4323.430885 | I37: =IF(E37="", "", E37/input!$C$23) -> 4323.430885 | J37: =IF(E37="", "", E37/input!$C$24) -> 4323.430885 | L37: =IF($E37="", "", $E37*input!L60) -> 475577.3974 | M37: =IF($E37="", "", $E37*input!M60) -> 0 | N37: =IF($E37="", "", $E37*input!N60) -> 0 | O37: =IF($F37="", "", $F37*input!L60) -> 1372561.394 | P37: =IF($F37="", "", $F37*input!M60) -> 0 | Q37: =IF($F37="", "", $F37*input!N60) -> 0 | R37: =IF($H37="", "", $H37*input!L60) -> 4323.430885 | S37: =IF($H37="", "", $H37*input!M60) -> 0 | T37: =IF($H37="", "", $H37*input!N60) -> 0 | U37: =IF($I37="", "",$I37*input!L60) -> 4323.430885 | V37: =IF($I37="", "",$I37*input!M60) -> 0 | W37: =IF($I37="", "",$I37*input!N60) -> 0 | X37: =IF($J37="", "", $J37*input!L60) -> 4323.430885 | Y37: =IF($J37="", "", $J37*input!M60) -> 0 | Z37: =IF($J37="", "", $J37*input!N60) -> 0
B38: =IF(input!B61="", "", input!B61) -> Løn til medarbejdertype 3 | C38: 3 | D38: =IF(input!H61="",Beregning!C38*input!G61,Beregning!C38*input!I61) -> 1567435.214 | E38: =IF(input!F61="", "", -PMT(Enhedspriskatalog!$B$6,input!J61,Beregning!D38, 0, 1)) -> 1567435.214 | F38: =IF(input!F61= "", "", -PV(Enhedspriskatalog!$B$6, input!$C$16,Beregning!E38,0, 1)) -> 4523766.423 | H38: =IF(E38= "", "", E38/input!$C$18) -> 14249.41103 | I38: =IF(E38="", "", E38/input!$C$23) -> 14249.41103 | J38: =IF(E38="", "", E38/input!$C$24) -> 14249.41103 | L38: =IF($E38="", "", $E38*input!L61) -> 1567435.214 | M38: =IF($E38="", "", $E38*input!M61) -> 0 | N38: =IF($E38="", "", $E38*input!N61) -> 0 | O38: =IF($F38="", "", $F38*input!L61) -> 4523766.423 | P38: =IF($F38="", "", $F38*input!M61) -> 0 | Q38: =IF($F38="", "", $F38*input!N61) -> 0 | R38: =IF($H38="", "", $H38*input!L61) -> 14249.41103 | S38: =IF($H38="", "", $H38*input!M61) -> 0 | T38: =IF($H38="", "", $H38*input!N61) -> 0 | U38: =IF($I38="", "",$I38*input!L61) -> 14249.41103 | V38: =IF($I38="", "",$I38*input!M61) -> 0 | W38: =IF($I38="", "",$I38*input!N61) -> 0 | X38: =IF($J38="", "", $J38*input!L61) -> 14249.41103 | Y38: =IF($J38="", "", $J38*input!M61) -> 0 | Z38: =IF($J38="", "", $J38*input!N61) -> 0
B39: =IF(input!B62="", "", input!B62) -> Løn til medarbejdertype 4 | C39: 1.5 | D39: =IF(input!H62="",Beregning!C39*input!G62,Beregning!C39*input!I62) -> 789224.1403 | E39: =IF(input!F62="", "", -PMT(Enhedspriskatalog!$B$6,input!J62,Beregning!D39, 0, 1)) -> 789224.1403 | F39: =IF(input!F62= "", "", -PV(Enhedspriskatalog!$B$6, input!$C$16,Beregning!E39,0, 1)) -> 2277775.588 | H39: =IF(E39= "", "", E39/input!$C$18) -> 7174.764912 | I39: =IF(E39="", "", E39/input!$C$23) -> 7174.764912 | J39: =IF(E39="", "", E39/input!$C$24) -> 7174.764912 | L39: =IF($E39="", "", $E39*input!L62) -> 789224.1403 | M39: =IF($E39="", "", $E39*input!M62) -> 0 | N39: =IF($E39="", "", $E39*input!N62) -> 0 | O39: =IF($F39="", "", $F39*input!L62) -> 2277775.588 | P39: =IF($F39="", "", $F39*input!M62) -> 0 | Q39: =IF($F39="", "", $F39*input!N62) -> 0 | R39: =IF($H39="", "", $H39*input!L62) -> 7174.764912 | S39: =IF($H39="", "", $H39*input!M62) -> 0 | T39: =IF($H39="", "", $H39*input!N62) -> 0 | U39: =IF($I39="", "",$I39*input!L62) -> 7174.764912 | V39: =IF($I39="", "",$I39*input!M62) -> 0 | W39: =IF($I39="", "",$I39*input!N62) -> 0 | X39: =IF($J39="", "", $J39*input!L62) -> 7174.764912 | Y39: =IF($J39="", "", $J39*input!M62) -> 0 | Z39: =IF($J39="", "", $J39*input!N62) -> 0
B40: =IF(input!B63="", "", input!B63) -> Løn til medarbejdertype 5 | C40: 0.5 | D40: =IF(input!H63="",Beregning!C40*input!G63,Beregning!C40*input!I63) -> 261239.2023 | E40: =IF(input!F63="", "", -PMT(Enhedspriskatalog!$B$6,input!J63,Beregning!D40, 0, 1)) -> 261239.2023 | F40: =IF(input!F63= "", "", -PV(Enhedspriskatalog!$B$6, input!$C$16,Beregning!E40,0, 1)) -> 753961.0706 | H40: =IF(E40= "", "", E40/input!$C$18) -> 2374.901839 | I40: =IF(E40="", "", E40/input!$C$23) -> 2374.901839 | J40: =IF(E40="", "", E40/input!$C$24) -> 2374.901839 | L40: =IF($E40="", "", $E40*input!L63) -> 261239.2023 | M40: =IF($E40="", "", $E40*input!M63) -> 0 | N40: =IF($E40="", "", $E40*input!N63) -> 0 | O40: =IF($F40="", "", $F40*input!L63) -> 753961.0706 | P40: =IF($F40="", "", $F40*input!M63) -> 0 | Q40: =IF($F40="", "", $F40*input!N63) -> 0 | R40: =IF($H40="", "", $H40*input!L63) -> 2374.901839 | S40: =IF($H40="", "", $H40*input!M63) -> 0 | T40: =IF($H40="", "", $H40*input!N63) -> 0 | U40: =IF($I40="", "",$I40*input!L63) -> 2374.901839 | V40: =IF($I40="", "",$I40*input!M63) -> 0 | W40: =IF($I40="", "",$I40*input!N63) -> 0 | X40: =IF($J40="", "", $J40*input!L63) -> 2374.901839 | Y40: =IF($J40="", "", $J40*input!M63) -> 0 | Z40: =IF($J40="", "", $J40*input!N63) -> 0
B41: =IF(input!B64="", "", input!B64) -> Løn til medarbejdertype 6 | C41: 0.5 | D41: =IF(input!H64="",Beregning!C41*input!G64,Beregning!C41*input!I64) -> 319273.3857 | E41: =IF(input!F64="", "", -PMT(Enhedspriskatalog!$B$6,input!J64,Beregning!D41, 0, 1)) -> 319273.3857 | F41: =IF(input!F64= "", "", -PV(Enhedspriskatalog!$B$6, input!$C$16,Beregning!E41,0, 1)) -> 921453.2181 | H41: =IF(E41= "", "", E41/input!$C$18) -> 2902.485324 | I41: =IF(E41="", "", E41/input!$C$23) -> 2902.485324 | J41: =IF(E41="", "", E41/input!$C$24) -> 2902.485324 | L41: =IF($E41="", "", $E41*input!L64) -> 319273.3857 | M41: =IF($E41="", "", $E41*input!M64) -> 0 | N41: =IF($E41="", "", $E41*input!N64) -> 0 | O41: =IF($F41="", "", $F41*input!L64) -> 921453.2181 | P41: =IF($F41="", "", $F41*input!M64) -> 0 | Q41: =IF($F41="", "", $F41*input!N64) -> 0 | R41: =IF($H41="", "", $H41*input!L64) -> 2902.485324 | S41: =IF($H41="", "", $H41*input!M64) -> 0 | T41: =IF($H41="", "", $H41*input!N64) -> 0 | U41: =IF($I41="", "",$I41*input!L64) -> 2902.485324 | V41: =IF($I41="", "",$I41*input!M64) -> 0 | W41: =IF($I41="", "",$I41*input!N64) -> 0 | X41: =IF($J41="", "", $J41*input!L64) -> 2902.485324 | Y41: =IF($J41="", "", $J41*input!M64) -> 0 | Z41: =IF($J41="", "", $J41*input!N64) -> 0
B42: =IF(input!B65="", "", input!B65) -> Løn til medarbejdertype 7 | C42: 0.5 | D42: =IF(input!H65="",Beregning!C42*input!G65,Beregning!C42*input!I65) -> 261239.2023 | E42: =IF(input!F65="", "", -PMT(Enhedspriskatalog!$B$6,input!J65,Beregning!D42, 0, 1)) -> 261239.2023 | F42: =IF(input!F65= "", "", -PV(Enhedspriskatalog!$B$6, input!$C$16,Beregning!E42,0, 1)) -> 753961.0706 | H42: =IF(E42= "", "", E42/input!$C$18) -> 2374.901839 | I42: =IF(E42="", "", E42/input!$C$23) -> 2374.901839 | J42: =IF(E42="", "", E42/input!$C$24) -> 2374.901839 | L42: =IF($E42="", "", $E42*input!L65) -> 261239.2023 | M42: =IF($E42="", "", $E42*input!M65) -> 0 | N42: =IF($E42="", "", $E42*input!N65) -> 0 | O42: =IF($F42="", "", $F42*input!L65) -> 753961.0706 | P42: =IF($F42="", "", $F42*input!M65) -> 0 | Q42: =IF($F42="", "", $F42*input!N65) -> 0 | R42: =IF($H42="", "", $H42*input!L65) -> 2374.901839 | S42: =IF($H42="", "", $H42*input!M65) -> 0 | T42: =IF($H42="", "", $H42*input!N65) -> 0 | U42: =IF($I42="", "",$I42*input!L65) -> 2374.901839 | V42: =IF($I42="", "",$I42*input!M65) -> 0 | W42: =IF($I42="", "",$I42*input!N65) -> 0 | X42: =IF($J42="", "", $J42*input!L65) -> 2374.901839 | Y42: =IF($J42="", "", $J42*input!M65) -> 0 | Z42: =IF($J42="", "", $J42*input!N65) -> 0
B43: =IF(input!B66="", "", input!B66) -> Løn til medarbejdertype 8 | C43: 0.5 | D43: =IF(input!H66="",Beregning!C43*input!G66,Beregning!C43*input!I66) -> 208080 | E43: =IF(input!F66="", "", -PMT(Enhedspriskatalog!$B$6,input!J66,Beregning!D43, 0, 1)) -> 208080 | F43: =IF(input!F66= "", "", -PV(Enhedspriskatalog!$B$6, input!$C$16,Beregning!E43,0, 1)) -> 600538.5799 | H43: =IF(E43= "", "", E43/input!$C$18) -> 1891.636364 | I43: =IF(E43="", "", E43/input!$C$23) -> 1891.636364 | J43: =IF(E43="", "", E43/input!$C$24) -> 1891.636364 | L43: =IF($E43="", "", $E43*input!L66) -> 208080 | M43: =IF($E43="", "", $E43*input!M66) -> 0 | N43: =IF($E43="", "", $E43*input!N66) -> 0 | O43: =IF($F43="", "", $F43*input!L66) -> 600538.5799 | P43: =IF($F43="", "", $F43*input!M66) -> 0 | Q43: =IF($F43="", "", $F43*input!N66) -> 0 | R43: =IF($H43="", "", $H43*input!L66) -> 1891.636364 | S43: =IF($H43="", "", $H43*input!M66) -> 0 | T43: =IF($H43="", "", $H43*input!N66) -> 0 | U43: =IF($I43="", "",$I43*input!L66) -> 1891.636364 | V43: =IF($I43="", "",$I43*input!M66) -> 0 | W43: =IF($I43="", "",$I43*input!N66) -> 0 | X43: =IF($J43="", "", $J43*input!L66) -> 1891.636364 | Y43: =IF($J43="", "", $J43*input!M66) -> 0 | Z43: =IF($J43="", "", $J43*input!N66) -> 0
B44: =IF(input!B67="", "", input!B67) ->  | D44: =IF(input!H67="",Beregning!C44*input!G67,Beregning!C44*input!I67) -> 0 | E44: =IF(input!F67="", "", -PMT(Enhedspriskatalog!$B$6,input!J67,Beregning!D44, 0, 1)) ->  | F44: =IF(input!F67= "", "", -PV(Enhedspriskatalog!$B$6, input!$C$16,Beregning!E44,0, 1)) ->  | H44: =IF(E44= "", "", E44/input!$C$18) ->  | I44: =IF(E44="", "", E44/input!$C$23) ->  | J44: =IF(E44="", "", E44/input!$C$24) ->  | L44: =IF($E44="", "", $E44*input!L67) ->  | M44: =IF($E44="", "", $E44*input!M67) ->  | N44: =IF($E44="", "", $E44*input!N67) ->  | O44: =IF($F44="", "", $F44*input!L67) ->  | P44: =IF($F44="", "", $F44*input!M67) ->  | Q44: =IF($F44="", "", $F44*input!N67) ->  | R44: =IF($H44="", "", $H44*input!L67) ->  | S44: =IF($H44="", "", $H44*input!M67) ->  | T44: =IF($H44="", "", $H44*input!N67) ->  | U44: =IF($I44="", "",$I44*input!L67) ->  | V44: =IF($I44="", "",$I44*input!M67) ->  | W44: =IF($I44="", "",$I44*input!N67) ->  | X44: =IF($J44="", "", $J44*input!L67) ->  | Y44: =IF($J44="", "", $J44*input!M67) ->  | Z44: =IF($J44="", "", $J44*input!N67) -> 
B45: =IF(input!B68="", "", input!B68) ->  | D45: =IF(input!H68="",Beregning!C45*input!G68,Beregning!C45*input!I68) -> 0 | E45: =IF(input!F68="", "", -PMT(Enhedspriskatalog!$B$6,input!J68,Beregning!D45, 0, 1)) ->  | F45: =IF(input!F68= "", "", -PV(Enhedspriskatalog!$B$6, input!$C$16,Beregning!E45,0, 1)) ->  | H45: =IF(E45= "", "", E45/input!$C$18) ->  | I45: =IF(E45="", "", E45/input!$C$23) ->  | J45: =IF(E45="", "", E45/input!$C$24) ->  | L45: =IF($E45="", "", $E45*input!L68) ->  | M45: =IF($E45="", "", $E45*input!M68) ->  | N45: =IF($E45="", "", $E45*input!N68) ->  | O45: =IF($F45="", "", $F45*input!L68) ->  | P45: =IF($F45="", "", $F45*input!M68) ->  | Q45: =IF($F45="", "", $F45*input!N68) ->  | R45: =IF($H45="", "", $H45*input!L68) ->  | S45: =IF($H45="", "", $H45*input!M68) ->  | T45: =IF($H45="", "", $H45*input!N68) ->  | U45: =IF($I45="", "",$I45*input!L68) ->  | V45: =IF($I45="", "",$I45*input!M68) ->  | W45: =IF($I45="", "",$I45*input!N68) ->  | X45: =IF($J45="", "", $J45*input!L68) ->  | Y45: =IF($J45="", "", $J45*input!M68) ->  | Z45: =IF($J45="", "", $J45*input!N68) -> 
B46: =IF(input!B69="", "", input!B69) ->  | D46: =IF(input!H69="",Beregning!C46*input!G69,Beregning!C46*input!I69) -> 0 | E46: =IF(input!F69="", "", -PMT(Enhedspriskatalog!$B$6,input!J69,Beregning!D46, 0, 1)) ->  | F46: =IF(input!F69= "", "", -PV(Enhedspriskatalog!$B$6, input!$C$16,Beregning!E46,0, 1)) ->  | H46: =IF(E46= "", "", E46/input!$C$18) ->  | I46: =IF(E46="", "", E46/input!$C$23) ->  | J46: =IF(E46="", "", E46/input!$C$24) ->  | L46: =IF($E46="", "", $E46*input!L69) ->  | M46: =IF($E46="", "", $E46*input!M69) ->  | N46: =IF($E46="", "", $E46*input!N69) ->  | O46: =IF($F46="", "", $F46*input!L69) ->  | P46: =IF($F46="", "", $F46*input!M69) ->  | Q46: =IF($F46="", "", $F46*input!N69) ->  | R46: =IF($H46="", "", $H46*input!L69) ->  | S46: =IF($H46="", "", $H46*input!M69) ->  | T46: =IF($H46="", "", $H46*input!N69) ->  | U46: =IF($I46="", "",$I46*input!L69) ->  | V46: =IF($I46="", "",$I46*input!M69) ->  | W46: =IF($I46="", "",$I46*input!N69) ->  | X46: =IF($J46="", "", $J46*input!L69) ->  | Y46: =IF($J46="", "", $J46*input!M69) ->  | Z46: =IF($J46="", "", $J46*input!N69) -> 
B47: =IF(input!B70="", "", input!B70) ->  | D47: =IF(input!H70="",Beregning!C47*input!G70,Beregning!C47*input!I70) -> 0 | E47: =IF(input!F70="", "", -PMT(Enhedspriskatalog!$B$6,input!J70,Beregning!D47, 0, 1)) ->  | F47: =IF(input!F70= "", "", -PV(Enhedspriskatalog!$B$6, input!$C$16,Beregning!E47,0, 1)) ->  | H47: =IF(E47= "", "", E47/input!$C$18) ->  | I47: =IF(E47="", "", E47/input!$C$23) ->  | J47: =IF(E47="", "", E47/input!$C$24) ->  | L47: =IF($E47="", "", $E47*input!L70) ->  | M47: =IF($E47="", "", $E47*input!M70) ->  | N47: =IF($E47="", "", $E47*input!N70) ->  | O47: =IF($F47="", "", $F47*input!L70) ->  | P47: =IF($F47="", "", $F47*input!M70) ->  | Q47: =IF($F47="", "", $F47*input!N70) ->  | R47: =IF($H47="", "", $H47*input!L70) ->  | S47: =IF($H47="", "", $H47*input!M70) ->  | T47: =IF($H47="", "", $H47*input!N70) ->  | U47: =IF($I47="", "",$I47*input!L70) ->  | V47: =IF($I47="", "",$I47*input!M70) ->  | W47: =IF($I47="", "",$I47*input!N70) ->  | X47: =IF($J47="", "", $J47*input!L70) ->  | Y47: =IF($J47="", "", $J47*input!M70) ->  | Z47: =IF($J47="", "", $J47*input!N70) -> 
B48: =IF(input!B71="", "", input!B71) ->  | D48: =IF(input!H71="",Beregning!C48*input!G71,Beregning!C48*input!I71) -> 0 | E48: =IF(input!F71="", "", -PMT(Enhedspriskatalog!$B$6,input!J71,Beregning!D48, 0, 1)) ->  | F48: =IF(input!F71= "", "", -PV(Enhedspriskatalog!$B$6, input!$C$16,Beregning!E48,0, 1)) ->  | H48: =IF(E48= "", "", E48/input!$C$18) ->  | I48: =IF(E48="", "", E48/input!$C$23) ->  | J48: =IF(E48="", "", E48/input!$C$24) ->  | L48: =IF($E48="", "", $E48*input!L71) ->  | M48: =IF($E48="", "", $E48*input!M71) ->  | N48: =IF($E48="", "", $E48*input!N71) ->  | O48: =IF($F48="", "", $F48*input!L71) ->  | P48: =IF($F48="", "", $F48*input!M71) ->  | Q48: =IF($F48="", "", $F48*input!N71) ->  | R48: =IF($H48="", "", $H48*input!L71) ->  | S48: =IF($H48="", "", $H48*input!M71) ->  | T48: =IF($H48="", "", $H48*input!N71) ->  | U48: =IF($I48="", "",$I48*input!L71) ->  | V48: =IF($I48="", "",$I48*input!M71) ->  | W48: =IF($I48="", "",$I48*input!N71) ->  | X48: =IF($J48="", "", $J48*input!L71) ->  | Y48: =IF($J48="", "", $J48*input!M71) ->  | Z48: =IF($J48="", "", $J48*input!N71) -> 
B49: =IF(input!B72="", "", input!B72) -> Investeringer | E49: =SUM(E50:E55) -> 0 | F49: =SUM(F50:F55) -> 0 | H49: =SUM(H50:H55) -> 0 | I49: =SUM(I50:I55) -> 0 | J49: =SUM(J50:J55) -> 0 | L49: =SUM(L50:L55) -> 0 | M49: 0 | N49: 0 | O49: 0 | P49: 0 | Q49: 0 | R49: 0 | S49: 0 | T49: 0 | U49: 0 | V49: 0 | W49: 0 | X49: 0 | Y49: 0 | Z49: 0
B50: =IF(input!B73="", "", input!B73) ->  | D50: =IF(input!H73="",Beregning!C50*input!G73,Beregning!C50*input!I73) -> 0 | E50: =IF(input!F73="", "", -PMT(Enhedspriskatalog!$B$6,input!J73,Beregning!D50, 0, 1)) ->  | F50: =IF(input!F73= "", "", -PV(Enhedspriskatalog!$B$6, input!$C$16,Beregning!E50,0, 1)) ->  | H50: =IF(E50= "", "", E50/input!$C$18) ->  | I50: =IF(E50="", "", E50/input!$C$23) ->  | J50: =IF(E50="", "", E50/input!$C$24) ->  | L50: =IF($E50="", "", $E50*input!L73) ->  | M50: =IF($E50="", "", $E50*input!M73) ->  | N50: =IF($E50="", "", $E50*input!N73) ->  | O50: =IF($F50="", "", $F50*input!L73) ->  | P50: =IF($F50="", "", $F50*input!M73) ->  | Q50: =IF($F50="", "", $F50*input!N73) ->  | R50: =IF($H50="", "", $H50*input!L73) ->  | S50: =IF($H50="", "", $H50*input!M73) ->  | T50: =IF($H50="", "", $H50*input!N73) ->  | U50: =IF($I50="", "",$I50*input!L73) ->  | V50: =IF($I50="", "",$I50*input!M73) ->  | W50: =IF($I50="", "",$I50*input!N73) ->  | X50: =IF($J50="", "", $J50*input!L73) ->  | Y50: =IF($J50="", "", $J50*input!M73) ->  | Z50: =IF($J50="", "", $J50*input!N73) -> 
B51: =IF(input!B74="", "", input!B74) ->  | D51: =IF(input!H74="",Beregning!C51*input!G74,Beregning!C51*input!I74) -> 0 | E51: =IF(input!F74="", "", -PMT(Enhedspriskatalog!$B$6,input!J74,Beregning!D51, 0, 1)) ->  | F51: =IF(input!F74= "", "", -PV(Enhedspriskatalog!$B$6, input!$C$16,Beregning!E51,0, 1)) ->  | H51: =IF(E51= "", "", E51/input!$C$18) ->  | I51: =IF(E51="", "", E51/input!$C$23) ->  | J51: =IF(E51="", "", E51/input!$C$24) ->  | L51: =IF($E51="", "", $E51*input!L74) ->  | M51: =IF($E51="", "", $E51*input!M74) ->  | N51: =IF($E51="", "", $E51*input!N74) ->  | O51: =IF($F51="", "", $F51*input!L74) ->  | P51: =IF($F51="", "", $F51*input!M74) ->  | Q51: =IF($F51="", "", $F51*input!N74) ->  | R51: =IF($H51="", "", $H51*input!L74) ->  | S51: =IF($H51="", "", $H51*input!M74) ->  | T51: =IF($H51="", "", $H51*input!N74) ->  | U51: =IF($I51="", "",$I51*input!L74) ->  | V51: =IF($I51="", "",$I51*input!M74) ->  | W51: =IF($I51="", "",$I51*input!N74) ->  | X51: =IF($J51="", "", $J51*input!L74) ->  | Y51: =IF($J51="", "", $J51*input!M74) ->  | Z51: =IF($J51="", "", $J51*input!N74) -> 
B52: =IF(input!B75="", "", input!B75) ->  | D52: =IF(input!H75="",Beregning!C52*input!G75,Beregning!C52*input!I75) -> 0 | E52: =IF(input!F75="", "", -PMT(Enhedspriskatalog!$B$6,input!J75,Beregning!D52, 0, 1)) ->  | F52: =IF(input!F75= "", "", -PV(Enhedspriskatalog!$B$6, input!$C$16,Beregning!E52,0, 1)) ->  | H52: =IF(E52= "", "", E52/input!$C$18) ->  | I52: =IF(E52="", "", E52/input!$C$23) ->  | J52: =IF(E52="", "", E52/input!$C$24) ->  | L52: =IF($E52="", "", $E52*input!L75) ->  | M52: =IF($E52="", "", $E52*input!M75) ->  | N52: =IF($E52="", "", $E52*input!N75) ->  | O52: =IF($F52="", "", $F52*input!L75) ->  | P52: =IF($F52="", "", $F52*input!M75) ->  | Q52: =IF($F52="", "", $F52*input!N75) ->  | R52: =IF($H52="", "", $H52*input!L75) ->  | S52: =IF($H52="", "", $H52*input!M75) ->  | T52: =IF($H52="", "", $H52*input!N75) ->  | U52: =IF($I52="", "",$I52*input!L75) ->  | V52: =IF($I52="", "",$I52*input!M75) ->  | W52: =IF($I52="", "",$I52*input!N75) ->  | X52: =IF($J52="", "", $J52*input!L75) ->  | Y52: =IF($J52="", "", $J52*input!M75) ->  | Z52: =IF($J52="", "", $J52*input!N75) -> 
B53: =IF(input!B76="", "", input!B76) ->  | D53: =IF(input!H76="",Beregning!C53*input!G76,Beregning!C53*input!I76) -> 0 | E53: =IF(input!F76="", "", -PMT(Enhedspriskatalog!$B$6,input!J76,Beregning!D53, 0, 1)) ->  | F53: =IF(input!F76= "", "", -PV(Enhedspriskatalog!$B$6, input!$C$16,Beregning!E53,0, 1)) ->  | H53: =IF(E53= "", "", E53/input!$C$18) ->  | I53: =IF(E53="", "", E53/input!$C$23) ->  | J53: =IF(E53="", "", E53/input!$C$24) ->  | L53: =IF($E53="", "", $E53*input!L76) ->  | M53: =IF($E53="", "", $E53*input!M76) ->  | N53: =IF($E53="", "", $E53*input!N76) ->  | O53: =IF($F53="", "", $F53*input!L76) ->  | P53: =IF($F53="", "", $F53*input!M76) ->  | Q53: =IF($F53="", "", $F53*input!N76) ->  | R53: =IF($H53="", "", $H53*input!L76) ->  | S53: =IF($H53="", "", $H53*input!M76) ->  | T53: =IF($H53="", "", $H53*input!N76) ->  | U53: =IF($I53="", "",$I53*input!L76) ->  | V53: =IF($I53="", "",$I53*input!M76) ->  | W53: =IF($I53="", "",$I53*input!N76) ->  | X53: =IF($J53="", "", $J53*input!L76) ->  | Y53: =IF($J53="", "", $J53*input!M76) ->  | Z53: =IF($J53="", "", $J53*input!N76) -> 
B54: =IF(input!B77="", "", input!B77) ->  | D54: =IF(input!H77="",Beregning!C54*input!G77,Beregning!C54*input!I77) -> 0 | E54: =IF(input!F77="", "", -PMT(Enhedspriskatalog!$B$6,input!J77,Beregning!D54, 0, 1)) ->  | F54: =IF(input!F77= "", "", -PV(Enhedspriskatalog!$B$6, input!$C$16,Beregning!E54,0, 1)) ->  | H54: =IF(E54= "", "", E54/input!$C$18) ->  | I54: =IF(E54="", "", E54/input!$C$23) ->  | J54: =IF(E54="", "", E54/input!$C$24) ->  | L54: =IF($E54="", "", $E54*input!L77) ->  | M54: =IF($E54="", "", $E54*input!M77) ->  | N54: =IF($E54="", "", $E54*input!N77) ->  | O54: =IF($F54="", "", $F54*input!L77) ->  | P54: =IF($F54="", "", $F54*input!M77) ->  | Q54: =IF($F54="", "", $F54*input!N77) ->  | R54: =IF($H54="", "", $H54*input!L77) ->  | S54: =IF($H54="", "", $H54*input!M77) ->  | T54: =IF($H54="", "", $H54*input!N77) ->  | U54: =IF($I54="", "",$I54*input!L77) ->  | V54: =IF($I54="", "",$I54*input!M77) ->  | W54: =IF($I54="", "",$I54*input!N77) ->  | X54: =IF($J54="", "", $J54*input!L77) ->  | Y54: =IF($J54="", "", $J54*input!M77) ->  | Z54: =IF($J54="", "", $J54*input!N77) -> 
B55: =IF(input!B78="", "", input!B78) ->  | D55: =IF(input!H78="",Beregning!C55*input!G78,Beregning!C55*input!I78) -> 0 | E55: =IF(input!F78="", "", -PMT(Enhedspriskatalog!$B$6,input!J78,Beregning!D55, 0, 1)) ->  | F55: =IF(input!F78= "", "", -PV(Enhedspriskatalog!$B$6, input!$C$16,Beregning!E55,0, 1)) ->  | H55: =IF(E55= "", "", E55/input!$C$18) ->  | I55: =IF(E55="", "", E55/input!$C$23) ->  | J55: =IF(E55="", "", E55/input!$C$24) ->  | L55: =IF($E55="", "", $E55*input!L78) ->  | M55: =IF($E55="", "", $E55*input!M78) ->  | N55: =IF($E55="", "", $E55*input!N78) ->  | O55: =IF($F55="", "", $F55*input!L78) ->  | P55: =IF($F55="", "", $F55*input!M78) ->  | Q55: =IF($F55="", "", $F55*input!N78) ->  | R55: =IF($H55="", "", $H55*input!L78) ->  | S55: =IF($H55="", "", $H55*input!M78) ->  | T55: =IF($H55="", "", $H55*input!N78) ->  | U55: =IF($I55="", "",$I55*input!L78) ->  | V55: =IF($I55="", "",$I55*input!M78) ->  | W55: =IF($I55="", "",$I55*input!N78) ->  | X55: =IF($J55="", "", $J55*input!L78) ->  | Y55: =IF($J55="", "", $J55*input!M78) ->  | Z55: =IF($J55="", "", $J55*input!N78) ->  | AG55: 1
B56: =IF(input!B79="", "", input!B79) -> Øvrige omkostninger | E56: =SUM(E57:E66) -> 780771.9459 | F56: =SUM(F57:F66) -> 2253381.755 | H56: =SUM(H57:H66) -> 7097.926781 | I56: =SUM(I57:I66) -> 7097.926781 | J56: =SUM(J57:J66) -> 7097.926781 | L56: =SUM(L57:L66) -> 780771.9459 | M56: =SUM(M57:M66) -> 0 | N56: 0 | O56: =SUM(O57:O66) -> 2253381.755 | P56: 0 | Q56: 0 | R56: =SUM(R57:R66) -> 7097.926781 | S56: 0 | T56: 0 | U56: =SUM(U57:U66) -> 7097.926781 | V56: 0 | W56: 0 | X56: =SUM(X57:X66) -> 7097.926781 | Y56: 0 | Z56: 0
B57: =IF(input!B80="", "", input!B80) -> Kontorhold, indretning husleje | C57: 1 | D57: =IF(input!H80="",Beregning!C57*input!G80,Beregning!C57*input!I80) -> 655771.9459 | E57: =IF(input!F80="", "", -PMT(Enhedspriskatalog!$B$6,input!J80,Beregning!D57, 0, 1)) -> 655771.9459 | F57: =IF(input!F80= "", "", -PV(Enhedspriskatalog!$B$6, input!$C$16,Beregning!E57,0, 1)) -> 1892619.921 | H57: =IF(E57= "", "", E57/input!$C$18) -> 5961.563145 | I57: =IF(E57="", "", E57/input!$C$23) -> 5961.563145 | J57: =IF(E57="", "", E57/input!$C$24) -> 5961.563145 | L57: =IF($E57="", "", $E57*input!L80) -> 655771.9459 | M57: =IF($E57="", "", $E57*input!M80) -> 0 | N57: =IF($E57="", "", $E57*input!N80) -> 0 | O57: =IF($F57="", "", $F57*input!L80) -> 1892619.921 | P57: =IF($F57="", "", $F57*input!M80) -> 0 | Q57: =IF($F57="", "", $F57*input!N80) -> 0 | R57: =IF($H57="", "", $H57*input!L80) -> 5961.563145 | S57: =IF($H57="", "", $H57*input!M80) -> 0 | T57: =IF($H57="", "", $H57*input!N80) -> 0 | U57: =IF($I57="", "",$I57*input!L80) -> 5961.563145 | V57: =IF($I57="", "",$I57*input!M80) -> 0 | W57: =IF($I57="", "",$I57*input!N80) -> 0 | X57: =IF($J57="", "", $J57*input!L80) -> 5961.563145 | Y57: =IF($J57="", "", $J57*input!M80) -> 0 | Z57: =IF($J57="", "", $J57*input!N80) -> 0
B58: =IF(input!B81="", "", input!B81) ->  | D58: =IF(input!H81="",Beregning!C58*input!G81,Beregning!C58*input!I81) -> 0 | E58: =IF(input!F81="", "", -PMT(Enhedspriskatalog!$B$6,input!J81,Beregning!D58, 0, 1)) ->  | F58: =IF(input!F81= "", "", -PV(Enhedspriskatalog!$B$6, input!$C$16,Beregning!E58,0, 1)) ->  | H58: =IF(E58= "", "", E58/input!$C$18) ->  | I58: =IF(E58="", "", E58/input!$C$23) ->  | J58: =IF(E58="", "", E58/input!$C$24) ->  | L58: =IF($E58="", "", $E58*input!L81) ->  | M58: =IF($E58="", "", $E58*input!M81) ->  | N58: =IF($E58="", "", $E58*input!N81) ->  | O58: =IF($F58="", "", $F58*input!L81) ->  | P58: =IF($F58="", "", $F58*input!M81) ->  | Q58: =IF($F58="", "", $F58*input!N81) ->  | R58: =IF($H58="", "", $H58*input!L81) ->  | S58: =IF($H58="", "", $H58*input!M81) ->  | T58: =IF($H58="", "", $H58*input!N81) ->  | U58: =IF($I58="", "",$I58*input!L81) ->  | V58: =IF($I58="", "",$I58*input!M81) ->  | W58: =IF($I58="", "",$I58*input!N81) ->  | X58: =IF($J58="", "", $J58*input!L81) ->  | Y58: =IF($J58="", "", $J58*input!M81) ->  | Z58: =IF($J58="", "", $J58*input!N81) -> 
B59: =IF(input!B82="", "", input!B82) ->  | D59: =IF(input!H82="",Beregning!C59*input!G82,Beregning!C59*input!I82) -> 0 | E59: =IF(input!F82="", "", -PMT(Enhedspriskatalog!$B$6,input!J82,Beregning!D59, 0, 1)) ->  | F59: =IF(input!F82= "", "", -PV(Enhedspriskatalog!$B$6, input!$C$16,Beregning!E59,0, 1)) ->  | H59: =IF(E59= "", "", E59/input!$C$18) ->  | I59: =IF(E59="", "", E59/input!$C$23) ->  | J59: =IF(E59="", "", E59/input!$C$24) ->  | L59: =IF($E59="", "", $E59*input!L82) ->  | M59: =IF($E59="", "", $E59*input!M82) ->  | N59: =IF($E59="", "", $E59*input!N82) ->  | O59: =IF($F59="", "", $F59*input!L82) ->  | P59: =IF($F59="", "", $F59*input!M82) ->  | Q59: =IF($F59="", "", $F59*input!N82) ->  | R59: =IF($H59="", "", $H59*input!L82) ->  | S59: =IF($H59="", "", $H59*input!M82) ->  | T59: =IF($H59="", "", $H59*input!N82) ->  | U59: =IF($I59="", "",$I59*input!L82) ->  | V59: =IF($I59="", "",$I59*input!M82) ->  | W59: =IF($I59="", "",$I59*input!N82) ->  | X59: =IF($J59="", "", $J59*input!L82) ->  | Y59: =IF($J59="", "", $J59*input!M82) ->  | Z59: =IF($J59="", "", $J59*input!N82) -> 
B60: =IF(input!B83="", "", input!B83) ->  | D60: =IF(input!H83="",Beregning!C60*input!G83,Beregning!C60*input!I83) -> 0 | E60: =IF(input!F83="", "", -PMT(Enhedspriskatalog!$B$6,input!J83,Beregning!D60, 0, 1)) ->  | F60: =IF(input!F83= "", "", -PV(Enhedspriskatalog!$B$6, input!$C$16,Beregning!E60,0, 1)) ->  | H60: =IF(E60= "", "", E60/input!$C$18) ->  | I60: =IF(E60="", "", E60/input!$C$23) ->  | J60: =IF(E60="", "", E60/input!$C$24) ->  | L60: =IF($E60="", "", $E60*input!L83) ->  | M60: =IF($E60="", "", $E60*input!M83) ->  | N60: =IF($E60="", "", $E60*input!N83) ->  | O60: =IF($F60="", "", $F60*input!L83) ->  | P60: =IF($F60="", "", $F60*input!M83) ->  | Q60: =IF($F60="", "", $F60*input!N83) ->  | R60: =IF($H60="", "", $H60*input!L83) ->  | S60: =IF($H60="", "", $H60*input!M83) ->  | T60: =IF($H60="", "", $H60*input!N83) ->  | U60: =IF($I60="", "",$I60*input!L83) ->  | V60: =IF($I60="", "",$I60*input!M83) ->  | W60: =IF($I60="", "",$I60*input!N83) ->  | X60: =IF($J60="", "", $J60*input!L83) ->  | Y60: =IF($J60="", "", $J60*input!M83) ->  | Z60: =IF($J60="", "", $J60*input!N83) -> 
B61: =IF(input!B84="", "", input!B84) -> Ydelser købt eksternt | C61: 1 | D61: =IF(input!H84="",Beregning!C61*input!G84,Beregning!C61*input!I84) -> 125000 | E61: =IF(input!F84="", "", -PMT(Enhedspriskatalog!$B$6,input!J84,Beregning!D61, 0, 1)) -> 125000 | F61: =IF(input!F84= "", "", -PV(Enhedspriskatalog!$B$6, input!$C$16,Beregning!E61,0, 1)) -> 360761.8343 | H61: =IF(E61= "", "", E61/input!$C$18) -> 1136.363636 | I61: =IF(E61="", "", E61/input!$C$23) -> 1136.363636 | J61: =IF(E61="", "", E61/input!$C$24) -> 1136.363636 | L61: =IF($E61="", "", $E61*input!L84) -> 125000 | M61: =IF($E61="", "", $E61*input!M84) -> 0 | N61: =IF($E61="", "", $E61*input!N84) -> 0 | O61: =IF($F61="", "", $F61*input!L84) -> 360761.8343 | P61: =IF($F61="", "", $F61*input!M84) -> 0 | Q61: =IF($F61="", "", $F61*input!N84) -> 0 | R61: =IF($H61="", "", $H61*input!L84) -> 1136.363636 | S61: =IF($H61="", "", $H61*input!M84) -> 0 | T61: =IF($H61="", "", $H61*input!N84) -> 0 | U61: =IF($I61="", "",$I61*input!L84) -> 1136.363636 | V61: =IF($I61="", "",$I61*input!M84) -> 0 | W61: =IF($I61="", "",$I61*input!N84) -> 0 | X61: =IF($J61="", "", $J61*input!L84) -> 1136.363636 | Y61: =IF($J61="", "", $J61*input!M84) -> 0 | Z61: =IF($J61="", "", $J61*input!N84) -> 0
B66: =IF(input!B89="", "", input!B89) ->  | D66: =IF(input!H89="",Beregning!C66*input!G89,Beregning!C66*input!I89) -> 0 | E66: =IF(input!F89="", "", -PMT(Enhedspriskatalog!$B$6,input!J89,Beregning!D66, 0, 1)) ->  | F66: =IF(input!F89= "", "", -PV(Enhedspriskatalog!$B$6, input!$C$16,Beregning!E66,0, 1)) ->  | H66: =IF(E66= "", "", E66/input!$C$18) ->  | I66: =IF(E66="", "", E66/input!$C$23) ->  | J66: =IF(E66="", "", E66/input!$C$24) ->  | L66: =IF($E66="", "", $E66*input!L89) ->  | M66: =IF($E66="", "", $E66*input!M89) ->  | N66: =IF($E66="", "", $E66*input!N89) ->  | O66: =IF($F66="", "", $F66*input!L89) ->  | P66: =IF($F66="", "", $F66*input!M89) ->  | Q66: =IF($F66="", "", $F66*input!N89) ->  | R66: =IF($H66="", "", $H66*input!L89) ->  | S66: =IF($H66="", "", $H66*input!M89) ->  | T66: =IF($H66="", "", $H66*input!N89) ->  | U66: =IF($I66="", "",$I66*input!L89) ->  | V66: =IF($I66="", "",$I66*input!M89) ->  | W66: =IF($I66="", "",$I66*input!N89) ->  | X66: =IF($J66="", "", $J66*input!L89) ->  | Y66: =IF($J66="", "", $J66*input!M89) ->  | Z66: =IF($J66="", "", $J66*input!N89) -> 
B67: =IF(input!B90="", "", input!B90) -> Tilskud | E67: =SUM(E68:E71) -> 0 | F67: =SUM(F68:F71) -> 0 | H67: =SUM(H68:H71) -> 0 | I67: =SUM(I68:I71) -> 0 | J67: =SUM(J68:J71) -> 0 | L67: =SUM(L68:L71) -> 0 | M67: 0 | N67: 0 | O67: 0 | P67: 0 | Q67: 0 | R67: 0 | S67: 0 | T67: 0 | U67: 0 | V67: 0 | W67: 0 | X67: 0 | Y67: 0 | Z67: 0
B68: =IF(input!B91="", "", input!B91) ->  | D68: =IF(input!H91="",Beregning!C68*input!G91,Beregning!C68*input!I91) -> 0 | E68: =IF(input!F91="", "", -PMT(Enhedspriskatalog!$B$6,input!J91,Beregning!D68, 0, 1)) ->  | F68: =IF(input!F91= "", "", -PV(Enhedspriskatalog!$B$6, input!$C$16,Beregning!E68,0, 1)) ->  | H68: =IF(E68= "", "", E68/input!$C$18) ->  | I68: =IF(E68="", "", E68/input!$C$23) ->  | J68: =IF(E68="", "", E68/input!$C$24) ->  | L68: =IF($E68="", "", $E68*input!L91) ->  | M68: =IF($E68="", "", $E68*input!M91) ->  | N68: =IF($E68="", "", $E68*input!N91) ->  | O68: =IF($F68="", "", $F68*input!L91) ->  | P68: =IF($F68="", "", $F68*input!M91) ->  | Q68: =IF($F68="", "", $F68*input!N91) ->  | R68: =IF($H68="", "", $H68*input!L91) ->  | S68: =IF($H68="", "", $H68*input!M91) ->  | T68: =IF($H68="", "", $H68*input!N91) ->  | U68: =IF($I68="", "",$I68*input!L91) ->  | V68: =IF($I68="", "",$I68*input!M91) ->  | W68: =IF($I68="", "",$I68*input!N91) ->  | X68: =IF($J68="", "", $J68*input!L91) ->  | Y68: =IF($J68="", "", $J68*input!M91) ->  | Z68: =IF($J68="", "", $J68*input!N91) -> 
B69: =IF(input!B92="", "", input!B92) ->  | D69: =IF(input!H92="",Beregning!C69*input!G92,Beregning!C69*input!I92) -> 0 | E69: =IF(input!F92="", "", -PMT(Enhedspriskatalog!$B$6,input!J92,Beregning!D69, 0, 1)) ->  | F69: =IF(input!F92= "", "", -PV(Enhedspriskatalog!$B$6, input!$C$16,Beregning!E69,0, 1)) ->  | H69: =IF(E69= "", "", E69/input!$C$18) ->  | I69: =IF(E69="", "", E69/input!$C$23) ->  | J69: =IF(E69="", "", E69/input!$C$24) ->  | L69: =IF($E69="", "", $E69*input!L92) ->  | M69: =IF($E69="", "", $E69*input!M92) ->  | N69: =IF($E69="", "", $E69*input!N92) ->  | O69: =IF($F69="", "", $F69*input!L92) ->  | P69: =IF($F69="", "", $F69*input!M92) ->  | Q69: =IF($F69="", "", $F69*input!N92) ->  | R69: =IF($H69="", "", $H69*input!L92) ->  | S69: =IF($H69="", "", $H69*input!M92) ->  | T69: =IF($H69="", "", $H69*input!N92) ->  | U69: =IF($I69="", "",$I69*input!L92) ->  | V69: =IF($I69="", "",$I69*input!M92) ->  | W69: =IF($I69="", "",$I69*input!N92) ->  | X69: =IF($J69="", "", $J69*input!L92) ->  | Y69: =IF($J69="", "", $J69*input!M92) ->  | Z69: =IF($J69="", "", $J69*input!N92) -> 
B70: =IF(input!B93="", "", input!B93) ->  | D70: =IF(input!H93="",Beregning!C70*input!G93,Beregning!C70*input!I93) -> 0 | E70: =IF(input!F93="", "", -PMT(Enhedspriskatalog!$B$6,input!J93,Beregning!D70, 0, 1)) ->  | F70: =IF(input!F93= "", "", -PV(Enhedspriskatalog!$B$6, input!$C$16,Beregning!E70,0, 1)) ->  | H70: =IF(E70= "", "", E70/input!$C$18) ->  | I70: =IF(E70="", "", E70/input!$C$23) ->  | J70: =IF(E70="", "", E70/input!$C$24) ->  | L70: =IF($E70="", "", $E70*input!L93) ->  | M70: =IF($E70="", "", $E70*input!M93) ->  | N70: =IF($E70="", "", $E70*input!N93) ->  | O70: =IF($F70="", "", $F70*input!L93) ->  | P70: =IF($F70="", "", $F70*input!M93) ->  | Q70: =IF($F70="", "", $F70*input!N93) ->  | R70: =IF($H70="", "", $H70*input!L93) ->  | S70: =IF($H70="", "", $H70*input!M93) ->  | T70: =IF($H70="", "", $H70*input!N93) ->  | U70: =IF($I70="", "",$I70*input!L93) ->  | V70: =IF($I70="", "",$I70*input!M93) ->  | W70: =IF($I70="", "",$I70*input!N93) ->  | X70: =IF($J70="", "", $J70*input!L93) ->  | Y70: =IF($J70="", "", $J70*input!M93) ->  | Z70: =IF($J70="", "", $J70*input!N93) -> 
B71: =IF(input!B94="", "", input!B94) ->  | D71: =IF(input!H94="",Beregning!C71*input!G94,Beregning!C71*input!I94) -> 0 | E71: =IF(input!F94="", "", -PMT(Enhedspriskatalog!$B$6,input!J94,Beregning!D71, 0, 1)) ->  | F71: =IF(input!F94= "", "", -PV(Enhedspriskatalog!$B$6, input!$C$16,Beregning!E71,0, 1)) ->  | H71: =IF(E71= "", "", E71/input!$C$18) ->  | I71: =IF(E71="", "", E71/input!$C$23) ->  | J71: =IF(E71="", "", E71/input!$C$24) ->  | L71: =IF($E71="", "", $E71*input!L94) ->  | M71: =IF($E71="", "", $E71*input!M94) ->  | N71: =IF($E71="", "", $E71*input!N94) ->  | O71: =IF($F71="", "", $F71*input!L94) ->  | P71: =IF($F71="", "", $F71*input!M94) ->  | Q71: =IF($F71="", "", $F71*input!N94) ->  | R71: =IF($H71="", "", $H71*input!L94) ->  | S71: =IF($H71="", "", $H71*input!M94) ->  | T71: =IF($H71="", "", $H71*input!N94) ->  | U71: =IF($I71="", "",$I71*input!L94) ->  | V71: =IF($I71="", "",$I71*input!M94) ->  | W71: =IF($I71="", "",$I71*input!N94) ->  | X71: =IF($J71="", "", $J71*input!L94) ->  | Y71: =IF($J71="", "", $J71*input!M94) ->  | Z71: =IF($J71="", "", $J71*input!N94) -> 
B72: =IF(input!B95="", "", input!B95) -> Total | E72: =E13+E24+E33+E49+E56+E67 -> 5565847.606 | F72: =F13+F24+F33+F49+F56+F67 -> 16063563.14 | H72: =H13+H24+H33+H49+H56+H67 -> 50598.6146 | I72: =I13+I24+I33+I49+I56+I67 -> 50598.6146 | J72: =J13+J24+J33+J49+J56+J67 -> 50598.6146 | L72: =L13+L24+L33+L49+L56+L67 -> 5565847.606 | M72: 0 | N72: 0 | O72: =O13+O24+O33+O49+O56+O67 -> 16063563.14 | P72: 0 | Q72: 0 | R72: 50598.6146 | S72: 0 | T72: 0 | U72: 50598.6146 | V72: 0 | W72: 0 | X72: 50598.6146 | Y72: 0 | Z72: 0

Sheet Resultat
A1: Præsentation af resultater
A10: Opsummering af scenarie
B11: Antal
A12: Antaget driftsperiode | B12: =input!C16 -> 3
A13: Antal igangsatte borgerforløb pr år | B13: =input!C23 -> 110
A14: Antal gennemførte borgerforløb pr år | B14: =input!C24 -> 110
A17: Overordnede resultater
B18: I alt, kr. | C18: Heraf
C19: =input!C28 -> Esbjerg kommune | D19: =input!C29 -> 0 | E19: =input!C30 -> 0
A20: Omkostninger pr. igangsat borgerforløb | B20: =Beregning!I72 -> 50598.6146 | C20: =Beregning!U72 -> 50598.6146 | D20: =Beregning!V72 -> 0 | E20: =Beregning!W72 -> 0
A21: Omkosntinger på gennemført borgerforløb | B21: =Beregning!J72 -> 50598.6146 | C21: =Beregning!X72 -> 50598.6146 | D21: =Beregning!Y72 -> 0 | E21: =Beregning!Z72 -> 0
A22: Omkostninger pr. forløb | B22: =Beregning!H72 -> 50598.6146 | C22: =Beregning!R72 -> 50598.6146 | D22: =Beregning!S72 -> 0 | E22: =Beregning!T72 -> 0
A23: Årlige omkostninger i alt | B23: =Beregning!E72 -> 5565847.606 | C23: =Beregning!L72 -> 5565847.606 | D23: =Beregning!M72 -> 0 | E23: =Beregning!N72 -> 0
A24: NNV over hele driftsperioden | B24: =Beregning!F72 -> 16063563.14 | C24: =Beregning!O72 -> 16063563.14 | D24: =Beregning!P72 -> 0 | E24: =Beregning!Q72 -> 0
A27: Omkostninger opdelt på kategorier
A28: Omkostninger pr. igangsat deltagerforløb | G28: Årlige omkostninger i alt
A29: Kategorier | B29: I alt, kr. | C29: Heraf | G29: Kategorier | H29: I alt, kr. | I29: Heraf
C30: =input!C28 -> Esbjerg kommune | D30: =input!C29 -> 0 | E30: =input!C30 -> 0 | I30: =input!C28 -> Esbjerg kommune | J30: =input!C29 -> 0 | K30: =input!C30 -> 0
A31: =Beregning!B13 -> Forberedelse | B31: =Beregning!I13 -> 1413.894646 | C31: =Beregning!U13 -> 1413.894646 | D31: =Beregning!V13 -> 0 | E31: =Beregning!W13 -> 0 | G31: =Beregning!B13 -> Forberedelse | H31: =Beregning!E13 -> 155528.4111 | I31: =Beregning!L13 -> 155528.4111 | J31: =Beregning!V13 -> 0 | K31: =Beregning!W13 -> 0
A32: =Beregning!B24 -> Uddannelse | B32: =Beregning!I24 -> 909.0909091 | C32: =Beregning!U24 -> 909.0909091 | D32: =Beregning!V24 -> 0 | E32: =Beregning!W24 -> 0 | G32: =Beregning!B24 -> Uddannelse | H32: =Beregning!E24 -> 100000 | I32: =Beregning!L24 -> 100000 | J32: =Beregning!V24 -> 0 | K32: =Beregning!W24 -> 0
A33: =Beregning!B33 -> Drift af indsats | B33: =Beregning!I33 -> 41177.70226 | C33: =Beregning!U33 -> 41177.70226 | D33: =Beregning!V33 -> 0 | E33: =Beregning!W33 -> 0 | G33: =Beregning!B33 -> Drift af indsats | H33: =Beregning!E33 -> 4529547.249 | I33: =Beregning!L33 -> 4529547.249 | J33: =Beregning!V33 -> 0 | K33: =Beregning!W33 -> 0
A34: =Beregning!B49 -> Investeringer | B34: =Beregning!I49 -> 0 | C34: =Beregning!U49 -> 0 | D34: =Beregning!V49 -> 0 | E34: =Beregning!W49 -> 0 | G34: =Beregning!B49 -> Investeringer | H34: =Beregning!E49 -> 0 | I34: =Beregning!L49 -> 0 | J34: =Beregning!V49 -> 0 | K34: =Beregning!W49 -> 0
A35: =Beregning!B56 -> Øvrige omkostninger | B35: =Beregning!I56 -> 7097.926781 | C35: =Beregning!U56 -> 7097.926781 | D35: =Beregning!V56 -> 0 | E35: =Beregning!W56 -> 0 | G35: =Beregning!B56 -> Øvrige omkostninger | H35: =Beregning!E56 -> 780771.9459 | I35: =Beregning!L56 -> 780771.9459 | J35: =Beregning!V56 -> 0 | K35: =Beregning!W56 -> 0
A36: =Beregning!B67 -> Tilskud | B36: =Beregning!I67 -> 0 | C36: =Beregning!U67 -> 0 | D36: =Beregning!V67 -> 0 | E36: =Beregning!W67 -> 0 | G36: =Beregning!B67 -> Tilskud | H36: =Beregning!E67 -> 0 | I36: =Beregning!L67 -> 0 | J36: =Beregning!V67 -> 0 | K36: =Beregning!W67 -> 0
A37: =Beregning!B72 -> Total | B37: =Beregning!I72 -> 50598.6146 | C37: =Beregning!U72 -> 50598.6146 | D37: =Beregning!V72 -> 0 | E37: =Beregning!W72 -> 0 | G37: =Beregning!B72 -> Total | H37: =Beregning!E72 -> 5565847.606 | I37: =Beregning!L72 -> 5565847.606 | J37: =Beregning!V72 -> 0 | K37: =Beregning!W72 -> 0
A40: Omkostninger pr. gennemført deltagerforløb | G40: NNV over hele driftsperioden
A41: Kategorier | B41: I alt, kr. | C41: Heraf | G41: Kategorier | H41: I alt, kr. | I41: Heraf
C42: =input!C28 -> Esbjerg kommune | D42: =input!C29 -> 0 | E42: =input!C30 -> 0 | I42: =input!C28 -> Esbjerg kommune | J42: =input!C29 -> 0 | K42: =input!C30 -> 0
A43: =Beregning!B13 -> Forberedelse | B43: =Beregning!J13 -> 1413.894646 | C43: =Beregning!X13 -> 1413.894646 | D43: =Beregning!V13 -> 0 | E43: =Beregning!W13 -> 0 | G43: =Beregning!B13 -> Forberedelse | H43: =Beregning!F13 -> 448869.719 | I43: =Beregning!O13 -> 448869.719 | J43: =Beregning!V13 -> 0 | K43: =Beregning!W13 -> 0
A44: =Beregning!B24 -> Uddannelse | B44: =Beregning!J24 -> 909.0909091 | C44: =Beregning!X24 -> 909.0909091 | D44: =Beregning!V24 -> 0 | E44: =Beregning!W24 -> 0 | G44: =Beregning!B24 -> Uddannelse | H44: =Beregning!F24 -> 288609.4675 | I44: =Beregning!O24 -> 288609.4675 | J44: =Beregning!V24 -> 0 | K44: =Beregning!W24 -> 0
A45: =Beregning!B33 -> Drift af indsats | B45: =Beregning!J33 -> 41177.70226 | C45: =Beregning!X33 -> 41177.70226 | D45: =Beregning!V33 -> 0 | E45: =Beregning!W33 -> 0 | G45: =Beregning!B33 -> Drift af indsats | H45: =Beregning!F33 -> 13072702.19 | I45: =Beregning!O33 -> 13072702.19 | J45: =Beregning!V33 -> 0 | K45: =Beregning!W33 -> 0
A46: =Beregning!B49 -> Investeringer | B46: =Beregning!J49 -> 0 | C46: =Beregning!X49 -> 0 | D46: =Beregning!V49 -> 0 | E46: =Beregning!W49 -> 0 | G46: =Beregning!B49 -> Investeringer | H46: =Beregning!F49 -> 0 | I46: =Beregning!O49 -> 0 | J46: =Beregning!V49 -> 0 | K46: =Beregning!W49 -> 0
A47: =Beregning!B56 -> Øvrige omkostninger | B47: =Beregning!J56 -> 7097.926781 | C47: =Beregning!X56 -> 7097.926781 | D47: =Beregning!V56 -> 0 | E47: =Beregning!W56 -> 0 | G47: =Beregning!B56 -> Øvrige omkostninger | H47: =Beregning!F56 -> 2253381.755 | I47: =Beregning!O56 -> 2253381.755 | J47: =Beregning!V56 -> 0 | K47: =Beregning!W56 -> 0
A48: =Beregning!B67 -> Tilskud | B48: =Beregning!J67 -> 0 | C48: =Beregning!X67 -> 0 | D48: =Beregning!V67 -> 0 | E48: =Beregning!W67 -> 0 | G48: =Beregning!B67 -> Tilskud | H48: =Beregning!F67 -> 0 | I48: =Beregning!O67 -> 0 | J48: =Beregning!V67 -> 0 | K48: =Beregning!W67 -> 0
A49: =Beregning!B72 -> Total | B49: =Beregning!J72 -> 50598.6146 | C49: =Beregning!X72 -> 50598.6146 | D49: =Beregning!V72 -> 0 | E49: =Beregning!W72 -> 0 | G49: =Beregning!B72 -> Total | H49: =Beregning!F72 -> 16063563.14 | I49: =Beregning!O72 -> 16063563.14 | J49: =Beregning!V72 -> 0 | K49: =Beregning!W72 -> 0
A52: Omkostninger pr. forløb
A53: Kategorier | B53: I alt, kr. | C53: Heraf
C54: =input!C28 -> Esbjerg kommune | D54: =input!C29 -> 0 | E54: =input!C238 -> 0
A55: =Beregning!B13 -> Forberedelse | B55: =Beregning!H13 -> 1413.894646 | C55: =Beregning!R13 -> 1413.894646 | D55: =Beregning!V13 -> 0 | E55: =Beregning!W13 -> 0
A56: =Beregning!B24 -> Uddannelse | B56: =Beregning!H24 -> 909.0909091 | C56: =Beregning!R24 -> 909.0909091 | D56: =Beregning!V24 -> 0 | E56: =Beregning!W24 -> 0
A57: =Beregning!B33 -> Drift af indsats | B57: =Beregning!H33 -> 41177.70226 | C57: =Beregning!R33 -> 41177.70226 | D57: =Beregning!V33 -> 0 | E57: =Beregning!W33 -> 0
A58: =Beregning!B49 -> Investeringer | B58: =Beregning!H49 -> 0 | C58: =Beregning!R49 -> 0 | D58: =Beregning!V49 -> 0 | E58: =Beregning!W49 -> 0
A59: =Beregning!B56 -> Øvrige omkostninger | B59: =Beregning!H56 -> 7097.926781 | C59: =Beregning!R56 -> 7097.926781 | D59: =Beregning!V56 -> 0 | E59: =Beregning!W56 -> 0
A60: =Beregning!B67 -> Tilskud | B60: =Beregning!H67 -> 0 | C60: =Beregning!R67 -> 0 | D60: =Beregning!V67 -> 0 | E60: =Beregning!W67 -> 0
A61: =Beregning!B72 -> Total | B61: =Beregning!H72 -> 50598.6146 | C61: =Beregning!R72 -> 50598.6146 | D61: =Beregning!V72 -> 0 | E61: =Beregning!W72 -> 0

Sheet Enhedspriskatalog
A1: Diverse enhedspriser til beregning af omkostninger
A4: Centrale parametre
A5: Diverse (Socialstyrelsens anbefalinger)
A6: Standard diskonteringsfaktor | B6: 0.04
A7: Standard overhead | B7: 0.2
A10: Deflator til omregning af enhedspriser
A11: Valg af deflator og prisår
A12: Deflator | B12: FPI
A13: Prisår | B13: 2014
A17: ="Valgt deflator: "&B12 -> Valgt deflator: FPI | E17: Forbrugerprisindeks | I17: Kommunal service pris- og lønindeks
A18: år | B18: =B12 -> FPI | C18: Beregnet deflator | E18: år | F18: FPI | G18: Beregnet deflator | I18: Opgørelse | J18: År | K18: Kommunal service PL | L18: Beregnet deflator
A19: 2015 | B19: =IF($B$12="FPI",VLOOKUP($A19,$E$19:$G$34,2,FALSE),IF($B$12="Kommunal service PL",VLOOKUP($A19,$J$19:$L$34,2,FALSE))) -> 129.6 | C19: =IF($B$12="FPI",VLOOKUP($A19,$E$19:$G$34,3,FALSE),IF($B$12="Kommunal service PL",VLOOKUP($A19,$J$19:$L$34,3,FALSE))) -> 1.000771605 | E19: 2015 | F19: 129.6 | G19: =IF($B$13=$E$19,($F$19/F19),IF($B$13=$E$20,($F$20/F19),IF($B$13=$E$21,$F$21/F19,IF($B$13=$E$22,$F$22/F19,IF($B$13=$E$23,$F$23/F19,IF($B$13=$E$24,$F$24/F19,IF($B$13=$E$25,$F$25/F19,IF($B$13=$E$26,$F$26/F19,IF($B$13=$E$27,$F$27/F19,IF($B$13=$E$28,$F$28/F19,IF($B$13=$E$29,$F$29/F19,IF($B$13=$E$30,$F$30/F19,IF($B$13=$E$31,$F$31/F19,IF($B$13=$E$32,$F$32/F19,IF($B$13=$E$33,$F$33/F19,IF($B$13=$E$34,$F$34/F19,"FEJL")))))))))))))))) -> 1.000771605 | J19: 2015 | K19: 1 | L19: =IF($B$13=$J$19,1,IF($B$13=$J$20,($K$19/$K$20),IF($B$13=$J$21,($K$20/$K$21),IF($B$13=$J$22,($K$20/$K$21)/$K$22,IF($B$13=$J$23,(($K$20/$K$21)/$K$22)/$K$23,IF($B$13=$J$24,((($K$20/$K$21)/$K$22)/$K$23)/$K$24,IF($B$13=$J$25,(((($K$20/$K$21)/$K$22)/$K$23)/$K$24)/$K$25,IF($B$13=$J$26,((((($K$20/$K$21)/$K$22)/$K$23)/$K$24)/$K$25)/$K$26,IF($B$13=$J$27,(((((($K$20/$K$21)/$K$22)/$K$23)/$K$24)/$K$25)/$K$26)/$K$27,IF($B$13=$J$28,((((((($K$20/$K$21)/$K$22)/$K$23)/$K$24)/$K$25)/$K$26)/$K$27)/$K$28,IF($B$13=$J$29,(((((((($K$20/$K$21)/$K$22)/$K$23)/$K$24)/$K$25)/$K$26)/$K$27)/$K$28)/$K$29,IF($B$13=$J$30,((((((((($K$20/$K$21)/$K$22)/$K$23)/$K$24)/$K$25)/$K$26)/$K$27)/$K$28)/$K$29)/$K$30,IF($B$13=$J$31,(((((((((($K$20/$K$21)/$K$22)/$K$23)/$K$24)/$K$25)/$K$26)/$K$27)/$K$28)/$K$29)/$K$30)/$K$31,IF($B$13=$J$32,((((((((((($K$20/$K$21)/$K$22)/$K$23)/$K$24)/$K$25)/$K$26)/$K$27)/$K$28)/$K$29)/$K$30)/$K$31)/$K$32,IF($B$13=$J$33,(((((((((((($K$20/$K$21)/$K$22)/$K$23)/$K$24)/$K$25)/$K$26)/$K$27)/$K$28)/$K$29)/$K$30)/$K$31)/$K$32)/$K$33,IF($B$13=$J$34,((((((((((((($K$20/$K$21)/$K$22)/$K$23)/$K$24)/$K$25)/$K$26)/$K$27)/$K$28)/$K$29)/$K$30)/$K$31)/$K$32)/$K$33)/$K$34,"jiJL")))))))))))))))) -> 0.9871668312
A20: 2014 | B20: =IF($B$12="FPI",VLOOKUP($A20,$E$20:$G$34,2,FALSE),IF($B$12="Kommunal service PL",VLOOKUP($A20,$J$20:$L$34,2,FALSE))) -> 129.7 | C20: =IF($B$12="FPI",VLOOKUP($A20,$E$20:$G$34,3,FALSE),IF($B$12="Kommunal service PL",VLOOKUP($A20,$J$20:$L$34,3,FALSE))) -> 1 | E20: 2014 | F20: 129.7 | G20: 1 | I20: (2014-2015) | J20: 2014 | K20: 1.013 | L20: =IF($B$13=$J$19,$K$20,IF($B$13=$J$20,1,IF($B$13=$J$21,($K$20/$K$21),IF($B$13=$J$22,($K$20/$K$21)/$K$22,IF($B$13=$J$23,(($K$20/$K$21)/$K$22)/$K$23,IF($B$13=$J$24,((($K$20/$K$21)/$K$22)/$K$23)/$K$24,IF($B$13=$J$25,(((($K$20/$K$21)/$K$22)/$K$23)/$K$24)/$K$25,IF($B$13=$J$26,((((($K$20/$K$21)/$K$22)/$K$23)/$K$24)/$K$25)/$K$26,IF($B$13=$J$27,(((((($K$20/$K$21)/$K$22)/$K$23)/$K$24)/$K$25)/$K$26)/$K$27,IF($B$13=$J$28,((((((($K$20/$K$21)/$K$22)/$K$23)/$K$24)/$K$25)/$K$26)/$K$27)/$K$28,IF($B$13=$J$29,(((((((($K$20/$K$21)/$K$22)/$K$23)/$K$24)/$K$25)/$K$26)/$K$27)/$K$28)/$K$29,IF($B$13=$J$30,((((((((($K$20/$K$21)/$K$22)/$K$23)/$K$24)/$K$25)/$K$26)/$K$27)/$K$28)/$K$29)/$K$30,IF($B$13=$J$31,(((((((((($K$20/$K$21)/$K$22)/$K$23)/$K$24)/$K$25)/$K$26)/$K$27)/$K$28)/$K$29)/$K$30)/$K$31,IF($B$13=$J$32,((((((((((($K$20/$K$21)/$K$22)/$K$23)/$K$24)/$K$25)/$K$26)/$K$27)/$K$28)/$K$29)/$K$30)/$K$31)/$K$32,IF($B$13=$J$33,(((((((((((($K$20/$K$21)/$K$22)/$K$23)/$K$24)/$K$25)/$K$26)/$K$27)/$K$28)/$K$29)/$K$30)/$K$31)/$K$32)/$K$33,IF($B$13=$J$34,((((((((((((($K$20/$K$21)/$K$22)/$K$23)/$K$24)/$K$25)/$K$26)/$K$27)/$K$28)/$K$29)/$K$30)/$K$31)/$K$32)/$K$33)/$K$34,"jiJL")))))))))))))))) -> 1
A21: 2013 | B21: 128.4 | C21: 1.010124611 | E21: 2013 | F21: 128.4 | G21: 1.010124611 | I21: (2013-2014) | J21: 2013 | K21: 1.014 | L21: =IF($B$13=$J$19,($K$21*$K$20),IF($B$13=$J$20,($K$21),IF($B$13=$J$21,1,IF($B$13=$J$22,$K$21/$K$22,IF($B$13=$J$23,($K$21/$K$22)/$K$23,IF($B$13=$J$24,(($K$21/$K$22)/$K$23)/$K$24,IF($B$13=$J$25,((($K$21/$K$22)/$K$23)/$K$24)/$K$25,IF($B$13=$J$26,(((($K$21/$K$22)/$K$23)/$K$24)/$K$25)/$K$26,IF($B$13=$J$27,((((($K$21/$K$22)/$K$23)/$K$24)/$K$25)/$K$26)/$K$27,IF($B$13=$J$28,(((((($K$21/$K$22)/$K$23)/$K$24)/$K$25)/$K$26)/$K$27)/$K$28,IF($B$13=$J$29,((((((($K$21/$K$22)/$K$23)/$K$24)/$K$25)/$K$26)/$K$27)/$K$28)/$K$29,IF($B$13=$J$30,(((((((($K$21/$K$22)/$K$23)/$K$24)/$K$25)/$K$26)/$K$27)/$K$28)/$K$29)/$K$30,IF($B$13=$J$31,((((((((($K$21/$K$22)/$K$23)/$K$24)/$K$25)/$K$26)/$K$27)/$K$28)/$K$29)/$K$30)/$K$31,IF($B$13=$J$32,(((((((((($K$21/$K$22)/$K$23)/$K$24)/$K$25)/$K$26)/$K$27)/$K$28)/$K$29)/$K$30)/$K$31)/$K$32,IF($B$13=$J$33,((((((((((($K$21/$K$22)/$K$23)/$K$24)/$K$25)/$K$26)/$K$27)/$K$28)/$K$29)/$K$30)/$K$31)/$K$32)/$K$33,IF($B$13=$J$34,(((((((((((($K$21/$K$22)/$K$23)/$K$24)/$K$25)/$K$26)/$K$27)/$K$28)/$K$29)/$K$30)/$K$31)/$K$32)/$K$33)/$K$34,"jiJL")))))))))))))))) -> 1.014
A22: 2012 | B22: 126.8 | C22: 1.022870662 | E22: 2012 | F22: 126.8 | G22: 1.022870662 | I22: (2012-2013) | J22: 2012 | K22: 1.01 | L22: =IF($B$13=$J$19,($K$22*$K$21*$K$20),IF($B$13=$J$20,($K$21*$K$22),IF($B$13=$J$21,$K$22,IF($B$13=$J$22,1,IF($B$13=$J$23,($K$22/$K$23),IF($B$13=$J$24,($K$22/$K$23)/$K$24,IF($B$13=$J$25,(($K$22/$K$23)/$K$24)/$K$25,IF($B$13=$J$26,((($K$22/$K$23)/$K$24)/$K$25)/$K$26,IF($B$13=$J$27,(((($K$22/$K$23)/$K$24)/$K$25)/$K$26)/$K$27,IF($B$13=$J$28,((((($K$22/$K$23)/$K$24)/$K$25)/$K$26)/$K$27)/$K$28,IF($B$13=$J$29,(((((($K$22/$K$23)/$K$24)/$K$25)/$K$26)/$K$27)/$K$28)/$K$29,IF($B$13=$J$30,((((((($K$22/$K$23)/$K$24)/$K$25)/$K$26)/$K$27)/$K$28)/$K$29)/$K$30,IF($B$13=$J$31,(((((((($K$22/$K$23)/$K$24)/$K$25)/$K$26)/$K$27)/$K$28)/$K$29)/$K$30)/$K$31,IF($B$13=$J$32,((((((((($K$22/$K$23)/$K$24)/$K$25)/$K$26)/$K$27)/$K$28)/$K$29)/$K$30)/$K$31)/$K$32,IF($B$13=$J$33,(((((((((($K$22/$K$23)/$K$24)/$K$25)/$K$26)/$K$27)/$K$28)/$K$29)/$K$30)/$K$31)/$K$32)/$K$33,IF($B$13=$J$34,((((((((((($K$22/$K$23)/$K$24)/$K$25)/$K$26)/$K$27)/$K$28)/$K$29)/$K$30)/$K$31)/$K$32)/$K$33)/$K$34,"jiJL")))))))))))))))) -> 1.02414
A23: 2011 | B23: 123.4 | C23: 1.051053485 | E23: 2011 | F23: 123.4 | G23: 1.051053485 | I23: (2011-2012) | J23: 2011 | K23: 1.024 | L23: =IF($B$13=$J$19,($K$23*$K$22*$K$21*$K$20),IF($B$13=$J$20,($K$23*$K$22*$K$21),IF($B$13=$J$21,$K$22*$K$23,IF($B$13=$J$22,$K$23,IF($B$13=$J$23,1,IF($B$13=$J$24,($K$23/$K$24),IF($B$13=$J$25,($K$23/$K$24)/$K$25,IF($B$13=$J$26,(($K$23/$K$24)/$K$25)/$K$26,IF($B$13=$J$27,((($K$23/$K$24)/$K$25)/$K$26)/$K$27,IF($B$13=$J$28,(((($K$23/$K$24)/$K$25)/$K$26)/$K$27)/$K$28,IF($B$13=$J$29,((((($K$23/$K$24)/$K$25)/$K$26)/$K$27)/$K$28)/$K$29,IF($B$13=$J$30,(((((($K$23/$K$24)/$K$25)/$K$26)/$K$27)/$K$28)/$K$29)/$K$30,IF($B$13=$J$31,((((((($K$23/$K$24)/$K$25)/$K$26)/$K$27)/$K$28)/$K$29)/$K$30)/$K$31,IF($B$13=$J$32,(((((((($K$23/$K$24)/$K$25)/$K$26)/$K$27)/$K$28)/$K$29)/$K$30)/$K$31)/$K$32,IF($B$13=$J$33,((((((((($K$23/$K$24)/$K$25)/$K$26)/$K$27)/$K$28)/$K$29)/$K$30)/$K$31)/$K$32)/$K$33,IF($B$13=$J$34,(((((((((($K$23/$K$24)/$K$25)/$K$26)/$K$27)/$K$28)/$K$29)/$K$30)/$K$31)/$K$32)/$K$33)/$K$34,"jiJL")))))))))))))))) -> 1.04871936
A24: 2010 | B24: 120.2 | C24: 1.079034942 | E24: 2010 | F24: 120.2 | G24: 1.079034942 | I24: (2010-2011) | J24: 2010 | K24: 1.013 | L24: =IF($B$13=$J$19,($K$24*$K$23*$K$22*$K$21*$K$20),IF($B$13=$J$20,($K$24*$K$23*$K$22*$K$21),IF($B$13=$J$21,$K$24*$K$23*$K$22,IF($B$13=$J$22,$K$22*$K$21,IF($B$13=$J$23,$K$24,IF($B$13=$J$24,1,IF($B$13=$J$25,($K$24/$K$25),IF($B$13=$J$26,($K$24/$K$25)/$K$26,IF($B$13=$J$27,(($K$24/$K$25)/$K$26)/$K$27,IF($B$13=$J$28,((($K$24/$K$25)/$K$26)/$K$27)/$K$28,IF($B$13=$J$29,(((($K$24/$K$25)/$K$26)/$K$27)/$K$28)/$K$29,IF($B$13=$J$30,((((($K$24/$K$25)/$K$26)/$K$27)/$K$28)/$K$29)/$K$30,IF($B$13=$J$31,(((((($K$24/$K$25)/$K$26)/$K$27)/$K$28)/$K$29)/$K$30)/$K$31,IF($B$13=$J$32,((((((($K$24/$K$25)/$K$26)/$K$27)/$K$28)/$K$29)/$K$30)/$K$31)/$K$32,IF($B$13=$J$33,(((((((($K$24/$K$25)/$K$26)/$K$27)/$K$28)/$K$29)/$K$30)/$K$31)/$K$32)/$K$33,IF($B$13=$J$34,((((((((($K$24/$K$25)/$K$26)/$K$27)/$K$28)/$K$29)/$K$30)/$K$31)/$K$32)/$K$33)/$K$34,"jiJL")))))))))))))))) -> 1.062352712
A25: 2009 | B25: 117.8 | C25: 1.101018676 | E25: 2009 | F25: 117.8 | G25: 1.101018676 | I25: (2009-2010) | J25: 2009 | K25: 1.029 | L25: =IF($B$13=$J$19,($K$25*$K$24*$K$23*$K$22*$K$21*$K$20),IF($B$13=$J$20,($K$25*$K$24*$K$23*$K$22*$K$21),IF($B$13=$J$21,$K$25*$K$24*$K$23*$K$22,IF($B$13=$J$22,$K$25*$K$24*$K$23,IF($B$13=$J$23,$K$25*$K$24,IF($B$13=$J$24,$K$25,IF($B$13=$J$25,1,IF($B$13=$J$26,($K$25/$K$26),IF($B$13=$J$27,(($K$25/$K$26))/$K$27,IF($B$13=$J$28,((($K$25/$K$26))/$K$27)/$K$28,IF($B$13=$J$29,(((($K$25/$K$26))/$K$27)/$K$28)/$K$29,IF($B$13=$J$30,((((($K$25/$K$26))/$K$27)/$K$28)/$K$29)/$K$30,IF($B$13=$J$31,(((((($K$25/$K$26))/$K$27)/$K$28)/$K$29)/$K$30)/$K$31,IF($B$13=$J$32,((((((($K$25/$K$26))/$K$27)/$K$28)/$K$29)/$K$30)/$K$31)/$K$32,IF($B$13=$J$33,(((((((($K$25/$K$26))/$K$27)/$K$28)/$K$29)/$K$30)/$K$31)/$K$32)/$K$33,IF($B$13=$J$34,((((((((($K$25/$K$26))/$K$27)/$K$28)/$K$29)/$K$30)/$K$31)/$K$32)/$K$33)/$K$34,"jiJL")))))))))))))))) -> 1.09316094
A26: 2008 | B26: 115.7 | C26: 1.121002593 | E26: 2008 | F26: 115.7 | G26: 1.121002593 | I26: (2008-2009) | J26: 2008 | K26: 1.039 | L26: =IF($B$13=$J$19,($K$26*$K$25*$K$24*$K$23*$K$22*$K$21*$K$20),IF($B$13=$J$20,($K$26*$K$25*$K$24*$K$23*$K$22*$K$21),IF($B$13=$J$21,$K$26*$K$25*$K$24*$K$23*$K$22,IF($B$13=$J$22,$K$26*$K$25*$K$24*$K$23,IF($B$13=$J$23,$K$26*$K$25*$K$24,IF($B$13=$J$24,$K$26*$K$25,IF($B$13=$J$25,$K$26,IF($B$13=$J$26,1,IF($B$13=$J$27,($K$26/$K$27),IF($B$13=$J$28,(($K$26/$K$27))/$K$28,IF($B$13=$J$29,((($K$26/$K$27))/$K$28)/$K$29,IF($B$13=$J$30,(((($K$26/$K$27))/$K$28)/$K$29)/$K$30,IF($B$13=$J$31,((((($K$26/$K$27))/$K$28)/$K$29)/$K$30)/$K$31,IF($B$13=$J$32,(((((($K$26/$K$27))/$K$28)/$K$29)/$K$30)/$K$31)/$K$32,IF($B$13=$J$33,((((((($K$26/$K$27))/$K$28)/$K$29)/$K$30)/$K$31)/$K$32)/$K$33,IF($B$13=$J$34,(((((((($K$26/$K$27))/$K$28)/$K$29)/$K$30)/$K$31)/$K$32)/$K$33)/$K$34,"jiJL")))))))))))))))) -> 1.135794217
A27: 2007 | B27: 112.4 | C27: 1.153914591 | E27: 2007 | F27: 112.4 | G27: 1.153914591 | I27: (2007-2008) | J27: 2007 | K27: 1.037 | L27: =IF($B$13=$J$19,($K$27*$K$26*$K$25*$K$24*$K$23*$K$22*$K$21*$K$20),IF($B$13=$J$20,($K$27*$K$26*$K$25*$K$24*$K$23*$K$22*$K$21),IF($B$13=$J$21,$K$27*$K$26*$K$25*$K$24*$K$23*$K$22,IF($B$13=$J$22,$K$27*$K$26*$K$25*$K$24*$K$23,IF($B$13=$J$23,$K$27*$K$26*$K$25*$K$24,IF($B$13=$J$24,$K$27*$K$26*$K$25,IF($B$13=$J$25,$K$27*$K$26,IF($B$13=$J$26,$K$27,IF($B$13=$J$27,1,IF($B$13=$J$28,($K$27/$K$28),IF($B$13=$J$29,($K$27/$K$28)/$K$29,IF($B$13=$J$30,(($K$27/$K$28)/$K$29)/$K$30,IF($B$13=$J$31,((($K$27/$K$28)/$K$29)/$K$30)/$K$31,IF($B$13=$J$32,(((($K$27/$K$28)/$K$29)/$K$30)/$K$31)/$K$32,IF($B$13=$J$33,((((($K$27/$K$28)/$K$29)/$K$30)/$K$31)/$K$32)/$K$33,IF($B$13=$J$34,(((((($K$27/$K$28)/$K$29)/$K$30)/$K$31)/$K$32)/$K$33)/$K$34,"jiJL")))))))))))))))) -> 1.177818603
A28: 2006 | B28: 110.4 | C28: 1.174818841 | E28: 2006 | F28: 110.4 | G28: 1.174818841 | I28: (2006-2007) | J28: 2006 | K28: 1.032 | L28: =IF($B$13=$J$19,($K$28*$K$27*$K$26*$K$25*$K$24*$K$23*$K$22*$K$21*$K$20),IF($B$13=$J$20,($K$28*$K$27*$K$26*$K$25*$K$24*$K$23*$K$22*$K$21),IF($B$13=$J$21,$K$28*$K$27*$K$26*$K$25*$K$24*$K$23*$K$22,IF($B$13=$J$22,$K$28*$K$27*$K$26*$K$25*$K$24*$K$23,IF($B$13=$J$23,$K$28*$K$27*$K$26*$K$25*$K$24,IF($B$13=$J$24,$K$28*$K$27*$K$26*$K$25,IF($B$13=$J$25,$K$28*$K$27*$K$26,IF($B$13=$J$26,$K$28*$K$27,IF($B$13=$J$27,$K$28,IF($B$13=$J$28,1,IF($B$13=$J$29,($K$28/$K$29),IF($B$13=$J$30,($K$28/$K$29)/$K$30,IF($B$13=$J$31,(($K$28/$K$29)/$K$30)/$K$31,IF($B$13=$J$32,((($K$28/$K$29)/$K$30)/$K$31)/$K$32,IF($B$13=$J$33,(((($K$28/$K$29)/$K$30)/$K$31)/$K$32)/$K$33,IF($B$13=$J$34,((((($K$28/$K$29)/$K$30)/$K$31)/$K$32)/$K$33)/$K$34,"jiJL")))))))))))))))) -> 1.215508798
A29: 2005 | B29: 108.1 | C29: 1.199814986 | E29: 2005 | F29: 108.1 | G29: 1.199814986 | I29: (2005-2006) | J29: 2005 | K29: 1.036 | L29: =IF($B$13=$J$19,($K$29*$K$28*$K$27*$K$26*$K$25*$K$24*$K$23*$K$22*$K$21*$K$20),IF($B$13=$J$20,($K$29*$K$28*$K$27*$K$26*$K$25*$K$24*$K$23*$K$22*$K$21),IF($B$13=$J$21,$K$29*$K$28*$K$27*$K$26*$K$25*$K$24*$K$23*$K$22,IF($B$13=$J$22,$K$29*$K$28*$K$27*$K$26*$K$25*$K$24*$K$23,IF($B$13=$J$23,$K$29*$K$28*$K$27*$K$26*$K$25*$K$24,IF($B$13=$J$24,$K$29*$K$28*$K$27*$K$26*$K$25,IF($B$13=$J$25,$K$29*$K$28*$K$27*$K$26,IF($B$13=$J$26,$K$29*$K$28*$K$27,IF($B$13=$J$27,$K$29*$K$28,IF($B$13=$J$28,$K$29,IF($B$13=$J$29,1,IF($B$13=$J$30,$K$29/$K$30,IF($B$13=$J$31,($K$29/$K$30)/$K$31,IF($B$13=$J$32,(($K$29/$K$30)/$K$31)/$K$32,IF($B$13=$J$33,((($K$29/$K$30)/$K$31)/$K$32)/$K$33,IF($B$13=$J$34,(((($K$29/$K$30)/$K$31)/$K$32)/$K$33)/$K$34,"jiJL")))))))))))))))) -> 1.259267115
A30: 2004 | B30: 107 | C30: 1.212149533 | E30: 2004 | F30: 107 | G30: 1.212149533 | I30: (2004-2005) | J30: 2004 | K30: 1.026 | L30: =IF($B$13=$J$19,($K$30*$K$29*$K$28*$K$27*$K$26*$K$25*$K$24*$K$23*$K$22*$K$21*$K$20),IF($B$13=$J$20,($K$30*$K$29*$K$28*$K$27*$K$26*$K$25*$K$24*$K$23*$K$22*$K$21),IF($B$13=$J$21,$K$30*$K$29*$K$28*$K$27*$K$26*$K$25*$K$24*$K$23*$K$22,IF($B$13=$J$22,$K$30*$K$29*$K$28*$K$27*$K$26*$K$25*$K$24*$K$23,IF($B$13=$J$23,$K$30*$K$29*$K$28*$K$27*$K$26*$K$25*$K$24,IF($B$13=$J$24,$K$30*$K$29*$K$28*$K$27*$K$26*$K$25,IF($B$13=$J$25,$K$30*$K$29*$K$28*$K$27*$K$26,IF($B$13=$J$26,$K$30*$K$29*$K$28*$K$27,IF($B$13=$J$27,$K$30*$K$29*$K$28,IF($B$13=$J$28,$K$30*$K$29,IF($B$13=$J$29,$K$30,IF($B$13=$J$30,1,IF($B$13=$J$31,$K$30/$K$31,IF($B$13=$J$32,($K$30/$K$31)/$K$32,IF($B$13=$J$33,(($K$30/$K$31)/$K$32)/$K$33,IF($B$13=$J$34,((($K$30/$K$31)/$K$32)/$K$33)/$K$34,"jiJL")))))))))))))))) -> 1.29200806
A31: 2003 | B31: 105.8 | C31: 1.225897921 | E31: 2003 | F31: 105.8 | G31: 1.225897921 | I31: (2003-2004) | J31: 2003 | K31: 1.033 | L31: =IF($B$13=$J$19,($K$31*$K$30*$K$29*$K$28*$K$27*$K$26*$K$25*$K$24*$K$23*$K$22*$K$21*$K$20),IF($B$13=$J$20,($K$31*$K$30*$K$29*$K$28*$K$27*$K$26*$K$25*$K$24*$K$23*$K$22*$K$21),IF($B$13=$J$21,$K$31*$K$30*$K$29*$K$28*$K$27*$K$26*$K$25*$K$24*$K$23*$K$22,IF($B$13=$J$22,$K$31*$K$30*$K$29*$K$28*$K$27*$K$26*$K$25*$K$24*$K$23,IF($B$13=$J$23,$K$31*$K$30*$K$29*$K$28*$K$27*$K$26*$K$25*$K$24,IF($B$13=$J$24,$K$31*$K$30*$K$29*$K$28*$K$27*$K$26*$K$25,IF($B$13=$J$25,$K$31*$K$30*$K$29*$K$28*$K$27*$K$26,IF($B$13=$J$26,$K$31*$K$30*$K$29*$K$28*$K$27,IF($B$13=$J$27,$K$31*$K$30*$K$29*$K$28,IF($B$13=$J$28,$K$31*$K$30*$K$29,IF($B$13=$J$29,$K$31*$K$30,IF($B$13=$J$30,$K$31,IF($B$13=$J$31,1,IF($B$13=$J$32,$K$31/$K$32,IF($B$13=$J$33,($K$31/$K$32)/$K$33,IF($B$13=$J$34,(($K$31/$K$32)/$K$33)/$K$34,"jiJL")))))))))))))))) -> 1.334644326
A32: 2002 | B32: 103.1 | C32: 1.25800194 | E32: 2002 | F32: 103.1 | G32: 1.25800194 | I32: (2002-2003) | J32: 2002 | K32: 1.035 | L32: =IF($B$13=$J$19,($K$32*$K$31*$K$30*$K$29*$K$28*$K$27*$K$26*$K$25*$K$24*$K$23*$K$22*$K$21*$K$20),IF($B$13=$J$20,($K$32*$K$31*$K$30*$K$29*$K$28*$K$27*$K$26*$K$25*$K$24*$K$23*$K$22*$K$21),IF($B$13=$J$21,$K$32*$K$31*$K$30*$K$29*$K$28*$K$27*$K$26*$K$25*$K$24*$K$23*$K$22,IF($B$13=$J$22,$K$32*$K$31*$K$30*$K$29*$K$28*$K$27*$K$26*$K$25*$K$24*$K$23,IF($B$13=$J$23,$K$32*$K$31*$K$30*$K$29*$K$28*$K$27*$K$26*$K$25*$K$24,IF($B$13=$J$24,$K$32*$K$31*$K$30*$K$29*$K$28*$K$27*$K$26*$K$25,IF($B$13=$J$25,$K$32*$K$31*$K$30*$K$29*$K$28*$K$27*$K$26,IF($B$13=$J$26,$K$32*$K$31*$K$30*$K$29*$K$28*$K$27,IF($B$13=$J$27,$K$32*$K$31*$K$30*$K$29*$K$28,IF($B$13=$J$28,$K$32*$K$31*$K$30*$K$29,IF($B$13=$J$29,$K$32*$K$31*$K$30,IF($B$13=$J$30,$K$32*$K$31,IF($B$13=$J$31,$K$32,IF($B$13=$J$32,1,IF($B$13=$J$33,$K$32/$K$33,IF($B$13=$J$34,($K$32/$K$33)/$K$34,"jiJL")))))))))))))))) -> 1.381356877
A33: 2001 | B33: 100.6 | C33: 1.289264414 | E33: 2001 | F33: 100.6 | G33: 1.289264414 | I33: (2001-2002) | J33: 2001 | K33: 1.026 | L33: =IF($B$13=$J$19,($K$33*$K$32*$K$31*$K$30*$K$29*$K$28*$K$27*$K$26*$K$25*$K$24*$K$23*$K$22*$K$21*$K$20),IF($B$13=$J$20,($K$33*$K$32*$K$31*$K$30*$K$29*$K$28*$K$27*$K$26*$K$25*$K$24*$K$23*$K$22*$K$21),IF($B$13=$J$21,$K$33*$K$32*$K$31*$K$30*$K$29*$K$28*$K$27*$K$26*$K$25*$K$24*$K$23*$K$22,IF($B$13=$J$22,$K$33*$K$32*$K$31*$K$30*$K$29*$K$28*$K$27*$K$26*$K$25*$K$24*$K$23,IF($B$13=$J$23,$K$33*$K$32*$K$31*$K$30*$K$29*$K$28*$K$27*$K$26*$K$25*$K$24,IF($B$13=$J$24,$K$33*$K$32*$K$31*$K$30*$K$29*$K$28*$K$27*$K$26*$K$25,IF($B$13=$J$25,$K$33*$K$32*$K$31*$K$30*$K$29*$K$28*$K$27*$K$26,IF($B$13=$J$26,$K$33*$K$32*$K$31*$K$30*$K$29*$K$28*$K$27,IF($B$13=$J$27,$K$33*$K$32*$K$31*$K$30*$K$29*$K$28,IF($B$13=$J$28,$K$33*$K$32*$K$31*$K$30*$K$29,IF($B$13=$J$29,$K$33*$K$32*$K$31*$K$30,IF($B$13=$J$30,$K$33*$K$32*$K$31,IF($B$13=$J$31,$K$33*$K$32,IF($B$13=$J$32,$K$33,IF($B$13=$J$33,1,IF($B$13=$J$34,$K$33/$K$34,"jiJL")))))))))))))))) -> 1.417272156
A34: 2000 | B34: 98.3 | C34: 1.319430315 | E34: 2000 | F34: 98.3 | G34: 1.319430315 | I34: (2000-2001) | J34: 2000 | K34: 1.035 | L34: =IF($B$13=$J$19,($K$34*$K$33*$K$32*$K$31*$K$30*$K$29*$K$28*$K$27*$K$26*$K$25*$K$24*$K$23*$K$22*$K$21*$K$20),IF($B$13=$J$20,($K$34*$K$33*$K$32*$K$31*$K$30*$K$29*$K$28*$K$27*$K$26*$K$25*$K$24*$K$23*$K$22*$K$21),IF($B$13=$J$21,$K$34*$K$33*$K$32*$K$31*$K$30*$K$29*$K$28*$K$27*$K$26*$K$25*$K$24*$K$23*$K$22,IF($B$13=$J$22,$K$34*$K$33*$K$32*$K$31*$K$30*$K$29*$K$28*$K$27*$K$26*$K$25*$K$24*$K$23,IF($B$13=$J$23,$K$34*$K$33*$K$32*$K$31*$K$30*$K$29*$K$28*$K$27*$K$26*$K$25*$K$24,IF($B$13=$J$24,$K$34*$K$33*$K$32*$K$31*$K$30*$K$29*$K$28*$K$27*$K$26*$K$25,IF($B$13=$J$25,$K$34*$K$33*$K$32*$K$31*$K$30*$K$29*$K$28*$K$27*$K$26,IF($B$13=$J$26,$K$34*$K$33*$K$32*$K$31*$K$30*$K$29*$K$28*$K$27,IF($B$13=$J$27,$K$34*$K$33*$K$32*$K$31*$K$30*$K$29*$K$28,IF($B$13=$J$28,$K$34*$K$33*$K$32*$K$31*$K$30*$K$29,IF($B$13=$J$29,$K$34*$K$33*$K$32*$K$31*$K$30,IF($B$13=$J$30,$K$34*$K$33*$K$32*$K$31,IF($B$13=$J$31,$K$34*$K$33*$K$32,IF($B$13=$J$32,$K$34*$K$33,IF($B$13=$J$33,$K$34,IF($B$13=$J$34,1,"jiJL")))))))))))))))) -> 1.466876682
A38: Lønninger for offentligt ansatte opdelt på personalegrupper
A39: Timenorm for offentlig ansatte
A40: 1418 | B40: timer/året
A43: Lønninger i Kommunerne
A44: Stillingskategori | B44: Gns. Årsløn (2014) | C44: Beregnet timeløn (årets priser) | D44: Beregnet årsløn (faste priser pba. valgt prisår) | E44: Beregnet timeløn (faste priser pba. valgt prisår)
A45: Akademikere (i alt) | B45: 532122.3094 | C45: =B45/$A$40 -> 375.2625595 | D45: =B45*$C$20 -> 532122.3094 | E45: =C45*$C$20 -> 375.2625595
A46: Jurister og økonomer, KL ny lønforløb | B46: 547775.6058 | C46: =B46/$A$40 -> 386.3015556 | D46: =B46*$C$20 -> 547775.6058 | E46: =C46*$C$20 -> 386.3015556
A47: Psykologer, nyt lønforløb | B47: 535913.9877 | C47: 377.9365216 | D47: 535913.9877 | E47: 377.9365216
A48: Dagplejere (i alt) | B48: 338577.3837 | C48: 238.7710746 | D48: 338577.3837 | E48: 238.7710746
A49: Ergoterapeuter | B49: 423779.2174 | C49: 298.8569939 | D49: 423779.2174 | E49: 298.8569939
A50: Fysioterapeuter | B50: 420142.496 | C50: 296.2923103 | D50: 420142.496 | E50: 296.2923103
A51: Kommunallæger (i alt) | B51: 819042.4181 | C51: 577.603962 | D51: 819042.4181 | E51: 577.603962
A52: Kontor- og it-personale ( i alt) | B52: 396314.4978 | C52: 279.4883624 | D52: 396314.4978 | E52: 279.4883624
A53: Omsorgs- og pædagogmedhjælpere, samt. pæd. ass. (i alt) | B53: 324164.0312 | C53: 228.60651 | D53: 324164.0312 | E53: 228.60651
A54: Pæd. personale, daginst./klub/skolefr. (i alt) | B54: 391248.235 | C54: 275.9155395 | D54: 391248.235 | E54: 275.9155395
A55: Hjemmevejledere og pæd. pers., døgninst. (i alt) | B55: 410767.3659 | C55: 289.680794 | D55: 410767.3659 | E55: 289.680794
A56: Pædagogiske konsulenter (i alt) | B56: 519329.0032 | C56: 366.2404818 | D56: 519329.0032 | E56: 366.2404818
A57: Pædagogmedhj. og pædagogiske assistenter (i alt) | B57: 293371.4303 | C57: 206.8909945 | D57: 293371.4303 | E57: 206.8909945
A58: Pædagogisk pers., forebyg. og dagbehandl. område | B58: 439707.8598 | C58: 310.0901691 | D58: 439707.8598 | E58: 310.0901691
A59: Social- og sundhedspersonale (i alt) | B59: 339063.2115 | C59: 239.1136893 | D59: 339063.2115 | E59: 239.1136893
A60: Social- og sundhedsassistenter | B60: 382335.2414 | C60: 269.6299305 | D60: 382335.2414 | E60: 269.6299305
A61: Social- og sundhedshjælpere | B61: 362113.105 | C61: 255.3689034 | D61: 362113.105 | E61: 255.3689034
A62: Socialrådg./socialformidlere | B62: 435398.6705 | C62: 307.0512486 | D62: 435398.6705 | E62: 307.0512486
A63: Sygeplejersker | B63: 437355.0638 | C63: 308.4309336 | D63: 437355.0638 | E63: 308.4309336
A64: Sundhedsplejersker | B64: 438457.8557 | C64: 309.208643 | D64: 438457.8557 | E64: 309.208643
A65: Syge- og sundhedspersonale, ledere (i alt) | B65: 539565.5894 | C65: 380.5116991 | D65: 539565.5894 | E65: 380.5116991
A66: Ledende sygeplejersker | B66: 552177.3221 | C66: 389.4057278 | D66: 552177.3221 | E66: 389.4057278
A67: Tolke (i alt) | B67: 427679.6035 | C67: 301.6076188 | D67: 427679.6035 | E67: 301.6076188
A68: Pædagogisk uddannede ledere (i alt) | B68: 515472.3541 | C68: 363.520701 | D68: 515472.3541 | E68: 363.520701
A69: Plejehjemsforstandere (i alt) | B69: 642557.6502 | C69: 453.1436179 | D69: 642557.6502 | E69: 453.1436179
A70: Lærer, folkeskole mv. (i alt) | B70: 467154.7152 | C70: 329.4462025 | D70: 467154.7152 | E70: 329.4462025
A71: Tandlæge (i alt) | B71: 634999.4995 | C71: 447.8134693 | D71: 634999.4995 | E71: 447.8134693
A72: Chefer, KL (forvaltningsniveau) (i alt) | B72: 860608.7039 | C72: 606.9172806 | D72: 860608.7039 | E72: 606.9172806
A75: Rejseomkostninger, kr.
B76: pris | C76: Justeret til valgt prisår
A77: Kørselgodgørelse pr. medarbejder i Danmark, 2013 | B77: =3.73 -> 3.73 | C77: =B77*$C$21 -> 3.767764798
A78: Gennemsnitlige rejseomkostninger pr. medarbejder(retur) i Danmark, 2013 | B78: =600*B77 -> 2238 | C78: 2260.658879
A79: Hoteldispositionsbeløb pr. medarbejder i Danmark, 2013 | B79: 1025 | C79: 1035.377726
A80: Hoteldispositionsbeløb pr. medarbejder i Europa, 2014 | B80: 1150 | C80: 1161.643302
A81: Hoteldispositionsbeløb pr. medarbejder i USA, 2014 | B81: 1678 | C81: 1694.989097
A82: Dagpenge pr. medarbejder i Danmark, 2014 | B82: 398 | C82: 402.029595
A83: Dagpenge pr. medarbejder i Udlandet, 2014 | B83: 464 | C83: 468.6978193
A87: Omkostninger til teknisk udstyr | D87: OBS! Tine skal give den rette kilde
A88: Teknisk udstyr | B88: Beløb i kr. (2014-priser) | C88: Justeret til valgt prisår
A89: 32" TV | B89: 3000 | C89: =B89*$C$20 -> 3000
A90: Videokamera | B90: 6500 | C90: =B90*$C$20 -> 6500
A91: Taske til kamera | B91: 470 | C91: =B91*$C$20 -> 470
A92: 128 GB SD-kort | B92: 750 | C92: =B92*$C$20 -> 750
A93: Diktafon | B93: 600 | C93: =B93*$C$20 -> 600

Sheet KPI Husleje
F3: Antal årsværk i alt i Esbjerg | G3: 8.364864865
F4: Gennemsnitlig husleje pr. årsværk fra kpi | G4: 65330
F5: Husleje i esbjerg | G5: 436448.2384
F6: Beregnet gennemsnits husleje - fra kpi | G6: =G4*G3 -> 546476.6216
F7: Median huslejen pr. årsværk fra kpi | G7: 49472.74917
F8: Beregnet median husleje esbjerg - fra kpi | G8: =G7*G3 -> 413832.8613
